{"text_format":"1","workbook":"xlsx","n_sheets":5,"sheets":["MAIRIE","MEDIAPOST","ENVOI_SNA","COLLECTIF","LISTE EXTENSIONS"],"not_rendered":{"charts":0,"images":0,"macros":1,"external_links":0,"defined_names":1,"comments":0,"pivot_tables":0},"unopened":[],"bounds":{"document_bytes":16777216,"sheet_cells":100000,"rows_first":2000,"rows_last":500,"rows_between":2000,"halvings":0,"cell_chars":16384,"cell_head_chars":4096},"cells_cut":0,"cells_raw":0,"read":"whole","date_system":"1900"}

{"sheet":"MAIRIE","index":0,"n_rows":84,"n_cols":16,"rows_kept":84,"cut":false,"hidden":false,"merged":[[21,7,23,7],[7,0,9,0],[16,0,19,0],[7,2,7,3],[8,2,8,3],[9,2,9,3],[11,2,11,3],[12,2,12,3],[13,2,13,3],[16,1,16,3],[17,1,17,3],[11,0,14,0],[21,0,23,0],[27,1,27,5],[26,1,26,5],[2,1,4,5],[1,1,1,5],[18,1,18,3],[19,1,19,3],[14,2,14,3],[21,5,23,6],[22,1,23,1],[21,2,21,3],[22,2,22,3],[23,2,23,3]]}
[]
[null,"PRESENTATION DU FICHIER ET DE L'OUTIL"]
[null,"Cet outil a pour but de vérifier l'exactitude des adresses renseignées, à savoir quelles soient complètes et uniques sur la commune : numéro + (possible extension) + Nom de voie + commune.\nCe sont à ces seules conditions qu'une clé médiapost pourra être associée à une adresse. Une adresse est elligible à la fibre optique, à la seule condition d'avoir une clé médiapost unique.\nIl vous suffit donc de compléter / corriger / ajouter / supprimer les adresses mentionnées et de lancer la vérifiaction jusqu'à n'avoir que des clés taguées en vert ou jaune.\nATTENTION EXTENSION : Pour le SNA : BIS = B / TER = T / QUARTER = Q / QUINQUIES = C"]
[]
[]
[]
[]
["COULEURS",null,"Adresse incomplète ou en doublon à corriger en suivant les explications indiquées dans la colonne médiapost"]
[null,null,"Adresse complète et unique mais qui n'existe pas dans la base de donnée du SNA, il faut donc créer la médiapost associée"]
[null,null,"Adresse complète et unique pour laquelle une clé médiapost a été trouvé dans la base de donnée du SNA"]
[]
["ONGLETS","MAIRIE","Cet onglet vous est dédié afin de corriger les adresses relevées,en ajoutant/supprimant/modifiant les lignes du tableau ci-dessous"]
[null,"MEDIAPOSTE","Cet onglet contient la base médiapost de la commune, elle est consultable pour la correction mais pas modifiable"]
[null,"ENVOI_SNA","Cet onglet contient toutes les nouvelles adresses qui devront être envoyées au SNA pour créer les clés médiapost associées"]
[null,"COLLECTIF","Cet onglet recence les adresses nécessitant une convention pour le déploiement, il se remplie en dernier car il se réinitialise à chaque vérification"]
[]
["PRECISIONS\n/ACTIONS","- La colonne OBJECTID correspond au code des prises renseignées sur la carte PDF et vous perrmet de les localiser."]
[null,"- Pour créer une nouvelle adresse n'oubliez pas de lui associer un OBJECTID unique dans le tableau et de le reporter sur la carte"]
[null,"- Vous pouvez corriger le nombre de prises  professionnelles / résidentielles / totales pour éclater ou regrouper des prises"]
[null,"- Les colonnes grisées sont optionnelles et ne sont pas à templir, seule la colonne Commentaire vous est dédié pour apporter des précisions"]
[]
["LIBELLES SPECIFIQUES","SUPPRIMER","- Pour supprimer une adresse mettez les prises à 0 et taguez le libéllé de voie en SUPPRIMER  mais garder la ligne pour notre suivi",null,null,"Nombre de prises sur la commune",null,{"$f":"SUM(J31:J99541)","v":62}]
[null,"NOUVELLE\nCONSTRUCTION","- Si vous connaissez partiellement l'adresse, taguer le libellé de voie en NOUVELLE CONSTRUCTION et mettez l'adresse partielle en commentaire"]
[null,null,"- Si vous n'avez encore aucune information sur l'adresse, taguer le libellé de voie en NOUVELLE CONSTRUCTION"]
[]
[]
[null,"PROCESS"]
[null,"1) Corriger les adresses à l'aide des commentaires indiqués en rouge dans la colonne \"Clé Mediapost\"\n2) Lancer l'outil en cliquant sur le bouton \"Vérification des adresses et des clés médiapost\"\n3) Réitérer 1) et 2) jusqu'à n'avoir dans la colonne \"Clé Mediapost\" que des champs tagués en vert ou jaune\n4) Copier/coller l'onglet \"ENVOI_SNA\" afin de l'envoyer directement au SNA pour lancer la création des nouvelles clés Médiapost\n5) Prévenir les administrés qui ont eu leur adresse modifiée, car c'est à cette nouvelle adresse qu'ils seront elligibles à la fibre optique"]
[]
["OBJECTID *","SUBTYPEID","Clé Mediapost","Num Voie","Extension voie","Libellé voie","Ville","Nombre \nprises pro","Nombre \nprises résidentiel","Nombre \nprises total","Commentaire","X","Y","ID parcelle","Référence\nde projet","CAS_PARTICULIER"]
[6172057,"Immeuble","Veuillez renseigner un numéro de voie.",null,null,"RUE DU PRIEURE","AUSSAC VADALLE",0,2,{"$f":"H31+I31","v":2},"PRISE  AJOUTEE - PLU",484103.77964076999,6529058.2628766401,"160024000ZL0060","FTTH16-AUNA-AU07","Nouvelles Constructions"]
[6469281,"Immeuble","Veuillez renseigner un numéro de voie.",null,null,"LIEU DIT RAVAUD","AUSSAC VADALLE",0,1,1,"PRISE AJOUTEE - PLU",484490.97165790002,6528953.3289532801,"1600240000B1129","FTTH16-AUNA-AU07","Nouvelles Constructions"]
[6469285,"Immeuble","Veuillez renseigner un numéro de voie.",null,null,"LIEU DIT RAVAUD","AUSSAC VADALLE",0,1,1,"PRISE AJOUTEE - PLU",484512.72045770998,6528970.6326776296,"1600240000B1129","FTTH16-AUNA-AU07","Nouvelles Constructions"]
[4851872,"Pavillon","Veuillez renseigner un numéro de voie.",null,null,"ALLEE DES HORTENSIAS","AUSSAC VADALLE",1,0,1,"garandeau production",484105.19252514001,6529448.1994022802,"160024000ZL0044","FTTH16-AUNA-AU07","Raccordement sur demande"]
[4835785,"Pavillon","Veuillez renseigner un numéro de voie.",null,null,"ALLEE DES HORTENSIAS","AUSSAC VADALLE",1,0,1,null,484105.58423238999,6529634.9775163801,"160024000ZL0040","FTTH16-AUNA-AU07","Raccordement sur demande"]
[4832164,"Pavillon","Veuillez renseigner un numéro de voie.",null,null,"LIEU DIT RAVAUD","AUSSAC VADALLE",0,1,1,"pas de num├®ro",484855.13924049999,6529642.8274923703,"1600240000B1099","FTTH16-AUNA-AU07","Raccordement sur demande"]
[6172058,"Immeuble","Veuillez renseigner un numéro de voie.",null,null,"LIEU DIT RAVAUD","AUSSAC VADALLE",0,1,1,"PRISE AJOUTEE - PLU",484511.76794793998,6528950.3126987601,"1600240000B1129","FTTH16-AUNA-AU07","Nouvelles Constructions"]
[6469280,"Immeuble","Veuillez renseigner un numéro de voie.",null,null,"LIEU DIT RAVAUD","AUSSAC VADALLE",0,1,1,"PRISE AJOUTEE - PLU",484492.24164902,6528972.0614813901,"1600240000B1129","FTTH16-AUNA-AU07","Nouvelles Constructions"]
[4826637,"Pavillon","Cette adresse est la même que celle située à la ligne 50, il faut ajouter une extension ou modifier le numéro de voie.",21,null,"ROUTE DE LA DUCHESSE","AUSSAC VADALLE",0,1,1,"21 puy chaussac",484567.57001035998,6529048.5522563802,"1600240000B0541","FTTH16-AUNA-AU07"]
[4855225,"Immeuble","Cette adresse est la même que celle située à la ligne 49, il faut ajouter une extension ou modifier le numéro de voie.",20,null,"ROUTE DE LA DUCHESSE","AUSSAC VADALLE",0,2,2,"22 puy chaussac",484513.41151687998,6529055.0064332196,"1600240000B0542","FTTH16-AUNA-AU07"]
[4849616,"Pavillon","Cette adresse est la même que celle située à la ligne 48, il faut ajouter une extension ou modifier le numéro de voie.",2,null,"CHEMIN DU MOULIN","AUSSAC VADALLE",0,1,1,null,484423.86629341001,6529307.3856718503,"1600240000B0464","FTTH16-AUNA-AU07"]
[4856680,"Pavillon","Cette adresse est la même que celle située à la ligne 47, il faut ajouter une extension ou modifier le numéro de voie.",12,null,"ROUTE DE LA DUCHESSE","AUSSAC VADALLE",0,1,1,"14 puy chaussac",484608.01531087997,6528949.8829365503,"1600240000B1079","FTTH16-AUNA-AU07"]
[4828137,"Pavillon","Cette adresse est la même que celle située à la ligne 46, il faut ajouter une extension ou modifier le numéro de voie.",20,null,"ROUTE DE LA DUCHESSE","AUSSAC VADALLE",0,1,1,"20 puy chaussac",484494.30400672997,6529027.4218622902,"1600240000B1075","FTTH16-AUNA-AU07"]
[4856007,"Pavillon","Cette adresse est la même que celle située à la ligne 45, il faut ajouter une extension ou modifier le numéro de voie.",1,null,"RUE DU BOIS DE LA CROIX","AUSSAC VADALLE",0,1,1,"puy chaussac 31",484485.36506818997,6529120.3533209404,"1600240000B0531","FTTH16-AUNA-AU07"]
[4834388,"Pavillon","Cette adresse est la même que celle située à la ligne 44, il faut ajouter une extension ou modifier le numéro de voie.",21,null,"ROUTE DE LA DUCHESSE","AUSSAC VADALLE",0,1,1,"19 puy chaussac",484587.38819903001,6529030.4441954298,"1600240000B1127","FTTH16-AUNA-AU07"]
[6172059,"Immeuble","Cette adresse est la même que celle située à la ligne 43, il faut ajouter une extension ou modifier le numéro de voie.",2,null,"CHEMIN DU MOULIN","AUSSAC VADALLE",0,6,6,"PRISE AJOUTEE - PLU",484356.72187389003,6529290.5675410004,"160024000ZL0051","FTTH16-AUNA-AU07","Densification"]
[4832420,"Pavillon","Cette adresse est la même que celle située à la ligne 42, il faut ajouter une extension ou modifier le numéro de voie.",12,null,"ROUTE DE LA DUCHESSE","AUSSAC VADALLE",0,1,1,"12 puy chaussac",484630.59537668002,6528927.1700061997,"1600240000B0757","FTTH16-AUNA-AU07"]
[4850801,"Pavillon","Cette adresse est la même que celle située à la ligne 41, il faut ajouter une extension ou modifier le numéro de voie.",13,null,"RUE DU PRIEURE","AUSSAC VADALLE",0,1,1,"pas de num├®ro",484338.93551554001,6529118.3796067303,"1600240000B0570","FTTH16-AUNA-AU07"]
[4829177,"Pavillon","Cette adresse est la même que celle située à la ligne 40, il faut ajouter une extension ou modifier le numéro de voie.",13,null,"RUE DU PRIEURE","AUSSAC VADALLE",0,1,1,"cable detach├®",484343.62489669002,6529102.1761457697,"1600240000B0568","FTTH16-AUNA-AU07"]
[4840266,"Pavillon","Cette adresse est la même que celle située à la ligne 39, il faut ajouter une extension ou modifier le numéro de voie.",1,null,"RUE DU BOIS DE LA CROIX","AUSSAC VADALLE",0,1,1,null,484498.22959273,6529126.8129108902,"1600240000B0533","FTTH16-AUNA-AU07"]
[4862224,"Pavillon","16024222BL",24,null,"RUE DU PRIEURE","AUSSAC VADALLE",0,1,1,null,484247.2612292,6529004.7461791104,"1600240000B0593","FTTH16-AUNA-AU07"]
[4813804,"Pavillon","16024222BH",5,null,"RUE DU PRIEURE","AUSSAC VADALLE",0,1,1,null,484371.12404651998,6529130.0528929401,"1600240000B0549","FTTH16-AUNA-AU07"]
[4837121,"Pavillon","16024222BE",6,null,"CHEMIN DU MOULIN","AUSSAC VADALLE",0,1,1,"pas d'adduction, nouvelle construction",484463.38226571999,6529306.2185374303,"1600240000B0495","FTTH16-AUNA-AU07"]
[4830777,"Pavillon","16024222BB",3,null,"CHEMIN DE LA TERRIERE","AUSSAC VADALLE",0,1,1,null,484371.58214121999,6529235.0615783297,"1600240000B1156","FTTH16-AUNA-AU07"]
[4850963,"Pavillon","16024222BA",1,null,"CHEMIN DE LA TERRIERE","AUSSAC VADALLE",0,1,1,null,484387.51957462,6529257.57010422,"1600240000B1157","FTTH16-AUNA-AU07"]
[4861600,"Pavillon","16024222AT",4,null,"RUE DU BOIS DE LA CROIX","AUSSAC VADALLE",0,1,1,null,484526.68320274999,6529143.6845044103,"1600240000B0530","FTTH16-AUNA-AU07"]
[4842779,"Pavillon","16024222AS",8,null,"RUE DU PRIEURE","AUSSAC VADALLE",0,1,1,null,484356.17239829001,6529091.7987727197,"1600240000B0575","FTTH16-AUNA-AU07"]
[4824466,"Pavillon","16024222AR",2,null,"RUE DU PRIEURE","AUSSAC VADALLE",0,1,1,null,484394.38617837999,6529139.9578136997,"1600240000B1072","FTTH16-AUNA-AU07"]
[4860866,"Immeuble","16024222AP",3,null,"RUE DU BOIS DE LA CROIX","AUSSAC VADALLE",0,2,2,null,484523.75791864999,6529127.8594549401,"1600240000B0535","FTTH16-AUNA-AU07"]
[4812074,"Pavillon","16024222AN",5,null,"RUE DU BOIS DE LA CROIX","AUSSAC VADALLE",0,1,1,null,484538.72503870999,6529127.7507369798,"1600240000B0535","FTTH16-AUNA-AU07"]
[4825296,"Pavillon","16024222AI",18,null,"ROUTE DE LA DUCHESSE","AUSSAC VADALLE",0,1,1,"18 puy chaussac",484545.76622262999,6529015.0233671404,"1600240000B1074","FTTH16-AUNA-AU07"]
[4852742,"Pavillon","16024222AH",15,null,"RUE DU PRIEURE","AUSSAC VADALLE",0,1,1,null,484333.83004004002,6529093.7996051405,"1600240000B0567","FTTH16-AUNA-AU07"]
[4844782,"Pavillon","16024222AG",14,null,"RUE DU BOIS DE LA CROIX","AUSSAC VADALLE",0,1,{"$f":"H63+I63","v":1},null,484588.82792041003,6529205.1879423596,"1600240000B0523","FTTH16-AUNA-AU07"]
[4829854,"Pavillon","16024222AE",10,null,"CHEMIN DU MOULIN","AUSSAC VADALLE",0,1,1,null,484463.88249302999,6529321.8914976204,"1600240000B0474","FTTH16-AUNA-AU07"]
[4846042,"Pavillon","16024222AC",1,null,"RUE DU PRIEURE","AUSSAC VADALLE",0,1,1,null,484389.5894533,6529155.9272671901,"1600240000B0553","FTTH16-AUNA-AU07"]
[4861929,"Pavillon","16024222A6",12,null,"CHEMIN DU MOULIN","AUSSAC VADALLE",0,1,1,null,484471.63554921001,6529344.2338263104,"1600240000B0481","FTTH16-AUNA-AU07"]
[4841377,"Pavillon","16024222A2",17,null,"RUE DU BOIS DE LA CROIX","AUSSAC VADALLE",0,1,1,null,484663.36116475001,6529143.8162318999,"1600240000B1133","FTTH16-AUNA-AU07"]
[4841944,"Pavillon","160242229Y",6,null,"RUE DU PRIEURE","AUSSAC VADALLE",0,1,1,null,484361.75796667999,6529104.4705338199,"1600240000B0574","FTTH16-AUNA-AU07"]
[4822437,"Pavillon","160242229T",24,null,"ROUTE DE LA DUCHESSE","AUSSAC VADALLE",0,1,1,"24 puy chaussac",484493.65983984998,6529084.8147887904,"1600240000B0544","FTTH16-AUNA-AU07"]
[4837271,"Pavillon","160242229S",8,null,"RUE DU BOIS DE LA CROIX","AUSSAC VADALLE",0,1,1,null,484556.81569680001,6529159.7636859398,"1600240000B0526","FTTH16-AUNA-AU07"]
[4814106,"Pavillon","160242229P",33,null,"RUE DU PRIEURE","AUSSAC VADALLE",0,1,1,null,484150.08182117,6529051.6482961299,"1600240000B0365","FTTH16-AUNA-AU07"]
[4847926,"Pavillon","160242229L",19,null,"RUE DU BOIS DE LA CROIX","AUSSAC VADALLE",0,1,1,null,484680.49742691999,6529140.4733602796,"1600240000B1142","FTTH16-AUNA-AU07"]
[4832742,"Pavillon","160242229I",2,null,"RUE DU BOIS DE LA CROIX","AUSSAC VADALLE",0,1,1,null,484498.14964383998,6529142.1138952002,"1600240000B0511","FTTH16-AUNA-AU07"]
[4826082,"Pavillon","160242229G",16,null,"RUE DU PRIEURE","AUSSAC VADALLE",0,1,1,null,484298.80402391002,6529035.2440972095,"1600240000B0586","FTTH16-AUNA-AU07"]
[4857839,"Pavillon","160242229E",15,null,"RUE DU BOIS DE LA CROIX","AUSSAC VADALLE",0,1,1,null,484629.68248300999,6529126.3767919503,"1600240000B0789","FTTH16-AUNA-AU07"]
[4861892,"Pavillon","160242229C",19,null,"RUE DU PRIEURE","AUSSAC VADALLE",0,1,1,null,484323.65934532002,6529083.7122607501,"1600240000B1167","FTTH16-AUNA-AU07"]
[4836383,"Pavillon","160242229A",9,null,"CHEMIN DE LA TERRIERE","AUSSAC VADALLE",0,1,1,null,484343.91750451998,6529137.9840488704,"1600240000B0573","FTTH16-AUNA-AU07"]
[4842634,"Pavillon","1602422299",20,null,"RUE DU BOIS DE LA CROIX","AUSSAC VADALLE",0,1,1,null,484666.43543069001,6529188.2555201696,"1600240000B0889","FTTH16-AUNA-AU07"]
[4830120,"Pavillon","1602422297",5,null,"CHEMIN DE LA TERRIERE","AUSSAC VADALLE",0,1,1,null,484364.25897523999,6529181.3348264303,"1600240000B0556","FTTH16-AUNA-AU07"]
[4836103,"Pavillon","1602422294",3,null,"RUE DU PRIEURE","AUSSAC VADALLE",0,1,1,null,484368.09390307998,6529147.6546044499,"1600240000B0550","FTTH16-AUNA-AU07"]
[4832031,"Pavillon","1602422292",26,null,"RUE DU PRIEURE","AUSSAC VADALLE",0,1,1,null,484191.8562719,6529026.5225638105,"1600240000B0597","FTTH16-AUNA-AU07"]
[4831104,"Pavillon","160242227X",22,null,"RUE DU PRIEURE","AUSSAC VADALLE",0,1,1,null,484243.97134147998,6529037.6914220303,"1600240000B0600","FTTH16-AUNA-AU07"]
[4859528,"Pavillon","160242227U",1,null,"RUE DU LOGIS","AUSSAC VADALLE",0,1,1,null,484474.14975457999,6529089.8990995204,"1600240000B0545","FTTH16-AUNA-AU07"]
[4860287,"Pavillon","160242227S",12,null,"RUE DU BOIS DE LA CROIX","AUSSAC VADALLE",0,1,1,null,484597.90002260002,6529168.8167936001,"1600240000B0524","FTTH16-AUNA-AU07"]

{"sheet":"MEDIAPOST","index":1,"n_rows":893,"n_cols":11,"rows_kept":893,"cut":false,"hidden":false,"merged":[]}
["Clé HEXACLE","Num Voie","Extension voie","Type voie ","Libellé voie","Localité","Code postal","Code INSEE","Dernier élément voie","Statut clé","ATTRIBUTION"]
[1602422223,null,null,"LD","LIEU DIT AUSSAC","AUSSAC VADALLE",16560,16024,"AUSSAC","Suppression"]
[1602422224,null,null,null,"CHEZ BOURRIER","AUSSAC VADALLE",16560,16024,"BOURRIER","Suppression"]
[1602422226,null,null,"LD","LIEU DIT LA BELLE CANTINIERE","AUSSAC VADALLE",16560,16024,"CANTINIERE","Initial"]
[1602422227,null,null,"LD","LIEU DIT LA GRANGE","AUSSAC VADALLE",16560,16024,"GRANGE","Suppression"]
[1602422229,null,null,"LD","LIEU DIT AUSSAC","AUSSAC VADALLE",16560,16024,"AUSSAC","Initial"]
[1602422229,null,null,"LD","LIEU DIT LE CHALET DE LA BOIXE","AUSSAC VADALLE",16560,16024,"BOIXE","Initial"]
["160242222A",null,null,"LD","LIEU DIT RAVAUD","AUSSAC VADALLE",16560,16024,"RAVAUD","Initial"]
["160242222A",null,null,"LD","LIEU DIT LE MOULIN DE RAVAUD","AUSSAC VADALLE",16560,16024,"RAVAUD","Initial"]
["160242222X",1,null,"LD","LIEU DIT RAVAUD","AUSSAC VADALLE",16560,16024,"RAVAUD","Suppression"]
["160242222B",null,null,"LD","LIEU DIT RAVAUD","AUSSAC VADALLE",16560,16024,"RAVAUD","Suppression"]
["160242222C",null,null,"LD","LIEU DIT VADALLE","AUSSAC VADALLE",16560,16024,"VADALLE","Suppression"]
["160242222E",null,null,"    ","CARRIERE DE RAVAUD","AUSSAC VADALLE",16560,16024,"RAVAUD","Suppression"]
["160242222G",null,null,"LD","LD L ERMITAGE DE LA DUCHESSE","AUSSAC VADALLE",16560,16024,"DUCHESSE","Suppression"]
["160242222H",null,null,"LD","LIEU DIT RAVAUD","AUSSAC VADALLE",16560,16024,"RAVAUD","Initial"]
["160242222H",null,null,"LD","LIEU DIT PETIT CHAMP DE GROLLE","AUSSAC VADALLE",16560,16024,"GROLLE","Initial"]
["160242222I",null,null,"RTE","ROUTE DES GRANGES","AUSSAC VADALLE",16560,16024,"GRANGES","Suppression"]
["160242222L",null,null,"LD","LIEU DIT PERAT","AUSSAC VADALLE",16560,16024,"PERAT","Suppression"]
["16024222M4",997,null,"RTE","ROUTE DE PARIS","AUSSAC VADALLE",16560,16024,"PARIS","Création"]
["16024222M4",997,null,"LD","LIEU DIT L OUCHE DE LA FORET","AUSSAC VADALLE",16560,16024,"FORET","Création"]
["16024222M4",997,null,"LD","LIEU DIT L OUCHE DE LA FORET","AUSSAC VADALLE",16560,16024,"FORET","Création"]
["16024222M6",999,null,"LD","LIEU DIT L OUCHE DE LA FORET","AUSSAC VADALLE",16560,16024,"FORET","Création"]
["16024222M6",999,null,"RTE","ROUTE DE PARIS","AUSSAC VADALLE",16560,16024,"PARIS","Création"]
["16024222M6",999,null,"LD","LIEU DIT L OUCHE DE LA FORET","AUSSAC VADALLE",16560,16024,"FORET","Création"]
["160242222M",null,null,"LD","LIEU DIT L OUCHE DE LA FORET","AUSSAC VADALLE",16560,16024,"FORET","Création"]
["160242222M",null,null,"RTE","ROUTE DE PARIS","AUSSAC VADALLE",16560,16024,"PARIS","Création"]
["160242222M",null,null,"LD","LIEU DIT L OUCHE DE LA FORET","AUSSAC VADALLE",16560,16024,"FORET","Création"]
["160242222N",null,null,"RTE","ROUTE DE SAINT ANGEAU","AUSSAC VADALLE",16560,16024,"ANGEAU","Suppression"]
["160242222P",null,null,null,"FRAICHE BISE","AUSSAC VADALLE",16560,16024,"BISE","Suppression"]
["160242222R",null,null,null,"LE BOURG","AUSSAC VADALLE",16560,16024,"BOURG","Suppression"]
["160242222T",null,null,"LD","LIEU DIT L OUCHE DE LA FORET","AUSSAC VADALLE",16560,16024,"FORET","Suppression"]
["160242222U",null,null,"LD","LIEU DIT LES CARRIERES","AUSSAC VADALLE",16560,16024,"CARRIERES","Suppression"]
["160242222V",null,null,"LD","LIEU DIT PUYMERLE","AUSSAC VADALLE",16560,16024,"PUYMERLE","Suppression"]
["16024222GE",12,null,"LD","LIEU DIT VADALLE","AUSSAC VADALLE",16560,16024,"VADALLE","Création"]
["16024222GE",12,null,null,"CHEZ BOURRIER","AUSSAC VADALLE",16560,16024,"BOURRIER","Création"]
["16024222GE",12,null,null,"LE BOURG","AUSSAC VADALLE",16560,16024,"BOURG","Création"]
["16024222GE",12,null,"RTE","ROUTE DE SAINT ANGEAU","AUSSAC VADALLE",16560,16024,"ANGEAU","Création"]
["16024222GE",12,null,"    ","RUE DE LA REPUBLIQUE","AUSSAC VADALLE",16560,16024,"REPUBLIQUE","Création"]
["16024222GG",14,null,"LD","LIEU DIT VADALLE","AUSSAC VADALLE",16560,16024,"VADALLE","Création"]
["16024222GG",14,null,null,"CHEZ BOURRIER","AUSSAC VADALLE",16560,16024,"BOURRIER","Création"]
["16024222GG",14,null,null,"LE BOURG","AUSSAC VADALLE",16560,16024,"BOURG","Création"]
["16024222GG",14,null,"RTE","ROUTE DE SAINT ANGEAU","AUSSAC VADALLE",16560,16024,"ANGEAU","Création"]
["16024222GG",14,null,"    ","RUE DE LA REPUBLIQUE","AUSSAC VADALLE",16560,16024,"REPUBLIQUE","Création"]
["16024222EV",15,null,"LD","LIEU DIT VADALLE","AUSSAC VADALLE",16560,16024,"VADALLE","Création"]
["16024222EV",15,null,null,"CHEZ BOURRIER","AUSSAC VADALLE",16560,16024,"BOURRIER","Création"]
["16024222EV",15,null,null,"LE BOURG","AUSSAC VADALLE",16560,16024,"BOURG","Création"]
["16024222EV",15,null,"RTE","ROUTE DE SAINT ANGEAU","AUSSAC VADALLE",16560,16024,"ANGEAU","Création"]
["16024222EV",15,null,"    ","RUE DE LA REPUBLIQUE","AUSSAC VADALLE",16560,16024,"REPUBLIQUE","Création"]
["16024222HV",16,null,"LD","LIEU DIT VADALLE","AUSSAC VADALLE",16560,16024,"VADALLE","Création"]
["16024222HV",16,null,null,"CHEZ BOURRIER","AUSSAC VADALLE",16560,16024,"BOURRIER","Création"]
["16024222HV",16,null,null,"LE BOURG","AUSSAC VADALLE",16560,16024,"BOURG","Création"]
["16024222HV",16,null,"RTE","ROUTE DE SAINT ANGEAU","AUSSAC VADALLE",16560,16024,"ANGEAU","Création"]
["16024222HV",16,null,"    ","RUE DE LA REPUBLIQUE","AUSSAC VADALLE",16560,16024,"REPUBLIQUE","Création"]
["16024222HX",17,null,"LD","LIEU DIT VADALLE","AUSSAC VADALLE",16560,16024,"VADALLE","Création"]
["16024222HX",17,null,null,"CHEZ BOURRIER","AUSSAC VADALLE",16560,16024,"BOURRIER","Création"]
["16024222HX",17,null,null,"LE BOURG","AUSSAC VADALLE",16560,16024,"BOURG","Création"]
["16024222HX",17,null,"RTE","ROUTE DE SAINT ANGEAU","AUSSAC VADALLE",16560,16024,"ANGEAU","Création"]
["16024222HX",17,null,"    ","RUE DE LA REPUBLIQUE","AUSSAC VADALLE",16560,16024,"REPUBLIQUE","Création"]
["16024222GI",18,null,"LD","LIEU DIT VADALLE","AUSSAC VADALLE",16560,16024,"VADALLE","Création"]
["16024222GI",18,null,null,"CHEZ BOURRIER","AUSSAC VADALLE",16560,16024,"BOURRIER","Création"]
["16024222GI",18,null,null,"LE BOURG","AUSSAC VADALLE",16560,16024,"BOURG","Création"]
["16024222GI",18,null,"RTE","ROUTE DE SAINT ANGEAU","AUSSAC VADALLE",16560,16024,"ANGEAU","Création"]
["16024222GI",18,null,"    ","RUE DE LA REPUBLIQUE","AUSSAC VADALLE",16560,16024,"REPUBLIQUE","Création"]
["16024222EZ",19,null,"LD","LIEU DIT VADALLE","AUSSAC VADALLE",16560,16024,"VADALLE","Création"]
["16024222EZ",19,null,null,"CHEZ BOURRIER","AUSSAC VADALLE",16560,16024,"BOURRIER","Création"]
["16024222EZ",19,null,null,"LE BOURG","AUSSAC VADALLE",16560,16024,"BOURG","Création"]
["16024222EZ",19,null,"RTE","ROUTE DE SAINT ANGEAU","AUSSAC VADALLE",16560,16024,"ANGEAU","Création"]
["16024222EZ",19,null,"    ","RUE DE LA REPUBLIQUE","AUSSAC VADALLE",16560,16024,"REPUBLIQUE","Création"]
["16024222EP",20,null,"LD","LIEU DIT VADALLE","AUSSAC VADALLE",16560,16024,"VADALLE","Création"]
["16024222EP",20,null,null,"CHEZ BOURRIER","AUSSAC VADALLE",16560,16024,"BOURRIER","Création"]
["16024222EP",20,null,null,"LE BOURG","AUSSAC VADALLE",16560,16024,"BOURG","Création"]
["16024222EP",20,null,"RTE","ROUTE DE SAINT ANGEAU","AUSSAC VADALLE",16560,16024,"ANGEAU","Création"]
["16024222EP",20,null,"    ","RUE DE LA REPUBLIQUE","AUSSAC VADALLE",16560,16024,"REPUBLIQUE","Création"]
["16024222IE",21,null,null,"CHEZ BOURRIER","AUSSAC VADALLE",16560,16024,"BOURRIER","Création"]
["16024222IE",21,null,"LD","LIEU DIT VADALLE","AUSSAC VADALLE",16560,16024,"VADALLE","Création"]
["16024222IE",21,null,null,"LE BOURG","AUSSAC VADALLE",16560,16024,"BOURG","Création"]
["16024222IE",21,null,"RTE","ROUTE DE SAINT ANGEAU","AUSSAC VADALLE",16560,16024,"ANGEAU","Création"]
["16024222IE",21,null,"    ","RUE DE LA REPUBLIQUE","AUSSAC VADALLE",16560,16024,"REPUBLIQUE","Création"]
["16024222LL",23,null,"LD","LIEU DIT VADALLE","AUSSAC VADALLE",16560,16024,"VADALLE","Création"]
["16024222LL",23,null,null,"CHEZ BOURRIER","AUSSAC VADALLE",16560,16024,"BOURRIER","Création"]
["16024222IP",23,"B","LD","LIEU DIT VADALLE","AUSSAC VADALLE",16560,16024,"VADALLE","Création"]
["16024222IP",23,"B",null,"CHEZ BOURRIER","AUSSAC VADALLE",16560,16024,"BOURRIER","Création"]
["16024222LL",23,null,"RTE","ROUTE DE SAINT ANGEAU","AUSSAC VADALLE",16560,16024,"ANGEAU","Création"]
["16024222LL",23,null,null,"LE BOURG","AUSSAC VADALLE",16560,16024,"BOURG","Création"]
["16024222IP",23,"B","RTE","ROUTE DE SAINT ANGEAU","AUSSAC VADALLE",16560,16024,"ANGEAU","Création"]
["16024222IP",23,"B",null,"LE BOURG","AUSSAC VADALLE",16560,16024,"BOURG","Création"]
["16024222LL",23,null,"    ","RUE DE LA REPUBLIQUE","AUSSAC VADALLE",16560,16024,"REPUBLIQUE","Création"]
["16024222IP",23,"B","    ","RUE DE LA REPUBLIQUE","AUSSAC VADALLE",16560,16024,"REPUBLIQUE","Création"]
["16024222HP",25,null,"LD","LIEU DIT VADALLE","AUSSAC VADALLE",16560,16024,"VADALLE","Création"]
["16024222HP",25,null,null,"CHEZ BOURRIER","AUSSAC VADALLE",16560,16024,"BOURRIER","Création"]
["16024222HP",25,null,null,"LE BOURG","AUSSAC VADALLE",16560,16024,"BOURG","Création"]
["16024222HP",25,null,"RTE","ROUTE DE SAINT ANGEAU","AUSSAC VADALLE",16560,16024,"ANGEAU","Création"]
["16024222HP",25,null,"    ","RUE DE LA REPUBLIQUE","AUSSAC VADALLE",16560,16024,"REPUBLIQUE","Création"]
["16024222I9",27,null,"LD","LIEU DIT VADALLE","AUSSAC VADALLE",16560,16024,"VADALLE","Création"]
["16024222I9",27,null,null,"CHEZ BOURRIER","AUSSAC VADALLE",16560,16024,"BOURRIER","Création"]
["16024222I9",27,null,null,"LE BOURG","AUSSAC VADALLE",16560,16024,"BOURG","Création"]
["16024222I9",27,null,"RTE","ROUTE DE SAINT ANGEAU","AUSSAC VADALLE",16560,16024,"ANGEAU","Création"]
["16024222I9",27,null,"    ","RUE DE LA REPUBLIQUE","AUSSAC VADALLE",16560,16024,"REPUBLIQUE","Création"]
["16024222EN",28,null,"LD","LIEU DIT VADALLE","AUSSAC VADALLE",16560,16024,"VADALLE","Création"]
["16024222EN",28,null,null,"CHEZ BOURRIER","AUSSAC VADALLE",16560,16024,"BOURRIER","Création"]
["16024222EN",28,null,null,"LE BOURG","AUSSAC VADALLE",16560,16024,"BOURG","Création"]
["16024222EN",28,null,"RTE","ROUTE DE SAINT ANGEAU","AUSSAC VADALLE",16560,16024,"ANGEAU","Création"]
["16024222EN",28,null,"    ","RUE DE LA REPUBLIQUE","AUSSAC VADALLE",16560,16024,"REPUBLIQUE","Création"]
["16024222GR",29,null,"LD","LIEU DIT VADALLE","AUSSAC VADALLE",16560,16024,"VADALLE","Création"]
["16024222GR",29,null,null,"CHEZ BOURRIER","AUSSAC VADALLE",16560,16024,"BOURRIER","Création"]
["16024222GR",29,null,null,"LE BOURG","AUSSAC VADALLE",16560,16024,"BOURG","Création"]
["16024222GR",29,null,"RTE","ROUTE DE SAINT ANGEAU","AUSSAC VADALLE",16560,16024,"ANGEAU","Création"]
["16024222GR",29,null,"    ","RUE DE LA REPUBLIQUE","AUSSAC VADALLE",16560,16024,"REPUBLIQUE","Création"]
["16024222GU",30,null,"LD","LIEU DIT VADALLE","AUSSAC VADALLE",16560,16024,"VADALLE","Création"]
["16024222GU",30,null,null,"CHEZ BOURRIER","AUSSAC VADALLE",16560,16024,"BOURRIER","Création"]
["16024222GU",30,null,null,"LE BOURG","AUSSAC VADALLE",16560,16024,"BOURG","Création"]
["16024222GU",30,null,"RTE","ROUTE DE SAINT ANGEAU","AUSSAC VADALLE",16560,16024,"ANGEAU","Création"]
["16024222GU",30,null,"    ","RUE DE LA REPUBLIQUE","AUSSAC VADALLE",16560,16024,"REPUBLIQUE","Création"]
["16024222GY",32,null,"LD","LIEU DIT VADALLE","AUSSAC VADALLE",16560,16024,"VADALLE","Création"]
["16024222GY",32,null,null,"CHEZ BOURRIER","AUSSAC VADALLE",16560,16024,"BOURRIER","Création"]
["16024222GY",32,null,null,"LE BOURG","AUSSAC VADALLE",16560,16024,"BOURG","Création"]
["16024222GY",32,null,"RTE","ROUTE DE SAINT ANGEAU","AUSSAC VADALLE",16560,16024,"ANGEAU","Création"]
["16024222GY",32,null,"    ","RUE DE LA REPUBLIQUE","AUSSAC VADALLE",16560,16024,"REPUBLIQUE","Création"]
["16024222HG",33,null,null,"CHEZ BOURRIER","AUSSAC VADALLE",16560,16024,"BOURRIER","Création"]
["16024222HG",33,null,"LD","LIEU DIT VADALLE","AUSSAC VADALLE",16560,16024,"VADALLE","Création"]
["16024222HG",33,null,null,"LE BOURG","AUSSAC VADALLE",16560,16024,"BOURG","Création"]
["16024222HG",33,null,"RTE","ROUTE DE SAINT ANGEAU","AUSSAC VADALLE",16560,16024,"ANGEAU","Création"]
["16024222HG",33,null,"    ","RUE DE LA REPUBLIQUE","AUSSAC VADALLE",16560,16024,"REPUBLIQUE","Création"]
["16024222HI",37,null,null,"CHEZ BOURRIER","AUSSAC VADALLE",16560,16024,"BOURRIER","Création"]
["16024222HI",37,null,"LD","LIEU DIT VADALLE","AUSSAC VADALLE",16560,16024,"VADALLE","Création"]
["16024222HI",37,null,null,"LE BOURG","AUSSAC VADALLE",16560,16024,"BOURG","Création"]
["16024222HI",37,null,"RTE","ROUTE DE SAINT ANGEAU","AUSSAC VADALLE",16560,16024,"ANGEAU","Création"]
["16024222HI",37,null,"    ","RUE DE LA REPUBLIQUE","AUSSAC VADALLE",16560,16024,"REPUBLIQUE","Création"]
["16024222GP",39,null,null,"CHEZ BOURRIER","AUSSAC VADALLE",16560,16024,"BOURRIER","Création"]
["16024222GP",39,null,"LD","LIEU DIT VADALLE","AUSSAC VADALLE",16560,16024,"VADALLE","Création"]
["16024222GP",39,null,null,"LE BOURG","AUSSAC VADALLE",16560,16024,"BOURG","Création"]
["16024222GP",39,null,"RTE","ROUTE DE SAINT ANGEAU","AUSSAC VADALLE",16560,16024,"ANGEAU","Création"]
["16024222GP",39,null,"    ","RUE DE LA REPUBLIQUE","AUSSAC VADALLE",16560,16024,"REPUBLIQUE","Création"]
["16024222ES",41,null,null,"CHEZ BOURRIER","AUSSAC VADALLE",16560,16024,"BOURRIER","Création"]
["16024222ES",41,null,"LD","LIEU DIT VADALLE","AUSSAC VADALLE",16560,16024,"VADALLE","Création"]
["16024222ES",41,null,null,"LE BOURG","AUSSAC VADALLE",16560,16024,"BOURG","Création"]
["16024222ES",41,null,"RTE","ROUTE DE SAINT ANGEAU","AUSSAC VADALLE",16560,16024,"ANGEAU","Création"]
["16024222ES",41,null,"    ","RUE DE LA REPUBLIQUE","AUSSAC VADALLE",16560,16024,"REPUBLIQUE","Création"]
["16024222I2",42,null,null,"CHEZ BOURRIER","AUSSAC VADALLE",16560,16024,"BOURRIER","Création"]
["16024222I2",42,null,"LD","LIEU DIT VADALLE","AUSSAC VADALLE",16560,16024,"VADALLE","Création"]
["16024222I2",42,null,null,"LE BOURG","AUSSAC VADALLE",16560,16024,"BOURG","Création"]
["16024222I2",42,null,"RTE","ROUTE DE SAINT ANGEAU","AUSSAC VADALLE",16560,16024,"ANGEAU","Création"]
["16024222I2",42,null,"    ","RUE DE LA REPUBLIQUE","AUSSAC VADALLE",16560,16024,"REPUBLIQUE","Création"]
["16024222IA",43,null,null,"CHEZ BOURRIER","AUSSAC VADALLE",16560,16024,"BOURRIER","Création"]
["16024222IA",43,null,"LD","LIEU DIT VADALLE","AUSSAC VADALLE",16560,16024,"VADALLE","Création"]
["16024222IA",43,null,null,"LE BOURG","AUSSAC VADALLE",16560,16024,"BOURG","Création"]
["16024222IA",43,null,"RTE","ROUTE DE SAINT ANGEAU","AUSSAC VADALLE",16560,16024,"ANGEAU","Création"]
["16024222IA",43,null,"    ","RUE DE LA REPUBLIQUE","AUSSAC VADALLE",16560,16024,"REPUBLIQUE","Création"]
["16024222H4",44,null,null,"CHEZ BOURRIER","AUSSAC VADALLE",16560,16024,"BOURRIER","Création"]
["16024222H4",44,null,"LD","LIEU DIT VADALLE","AUSSAC VADALLE",16560,16024,"VADALLE","Création"]
["16024222H4",44,null,null,"LE BOURG","AUSSAC VADALLE",16560,16024,"BOURG","Création"]
["16024222H4",44,null,"RTE","ROUTE DE SAINT ANGEAU","AUSSAC VADALLE",16560,16024,"ANGEAU","Création"]
["16024222H4",44,null,"    ","RUE DE LA REPUBLIQUE","AUSSAC VADALLE",16560,16024,"REPUBLIQUE","Création"]
["16024222HR",47,null,null,"CHEZ BOURRIER","AUSSAC VADALLE",16560,16024,"BOURRIER","Création"]
["16024222HR",47,null,"LD","LIEU DIT VADALLE","AUSSAC VADALLE",16560,16024,"VADALLE","Création"]
["16024222HR",47,null,null,"LE BOURG","AUSSAC VADALLE",16560,16024,"BOURG","Création"]
["16024222HR",47,null,"RTE","ROUTE DE SAINT ANGEAU","AUSSAC VADALLE",16560,16024,"ANGEAU","Création"]
["16024222HR",47,null,"    ","RUE DE LA REPUBLIQUE","AUSSAC VADALLE",16560,16024,"REPUBLIQUE","Création"]
["16024222IG",50,null,null,"CHEZ BOURRIER","AUSSAC VADALLE",16560,16024,"BOURRIER","Création"]
["16024222IG",50,null,"LD","LIEU DIT VADALLE","AUSSAC VADALLE",16560,16024,"VADALLE","Création"]
["16024222IG",50,null,null,"LE BOURG","AUSSAC VADALLE",16560,16024,"BOURG","Création"]
["16024222IG",50,null,"RTE","ROUTE DE SAINT ANGEAU","AUSSAC VADALLE",16560,16024,"ANGEAU","Création"]
["16024222IG",50,null,"    ","RUE DE LA REPUBLIQUE","AUSSAC VADALLE",16560,16024,"REPUBLIQUE","Création"]
["16024222GA",52,null,"LD","LIEU DIT VADALLE","AUSSAC VADALLE",16560,16024,"VADALLE","Création"]
["16024222GA",52,null,null,"CHEZ BOURRIER","AUSSAC VADALLE",16560,16024,"BOURRIER","Création"]
["16024222GA",52,null,"RTE","ROUTE DE SAINT ANGEAU","AUSSAC VADALLE",16560,16024,"ANGEAU","Création"]
["16024222GA",52,null,null,"LE BOURG","AUSSAC VADALLE",16560,16024,"BOURG","Création"]
["16024222GA",52,null,"    ","RUE DE LA REPUBLIQUE","AUSSAC VADALLE",16560,16024,"REPUBLIQUE","Création"]
["16024222HT",53,null,null,"CHEZ BOURRIER","AUSSAC VADALLE",16560,16024,"BOURRIER","Création"]
["16024222HT",53,null,"LD","LIEU DIT VADALLE","AUSSAC VADALLE",16560,16024,"VADALLE","Création"]
["16024222HT",53,null,null,"LE BOURG","AUSSAC VADALLE",16560,16024,"BOURG","Création"]
["16024222HT",53,null,"RTE","ROUTE DE SAINT ANGEAU","AUSSAC VADALLE",16560,16024,"ANGEAU","Création"]
["16024222HT",53,null,"    ","RUE DE LA REPUBLIQUE","AUSSAC VADALLE",16560,16024,"REPUBLIQUE","Création"]
["16024222H2",54,null,"LD","LIEU DIT VADALLE","AUSSAC VADALLE",16560,16024,"VADALLE","Création"]
["16024222H2",54,null,null,"CHEZ BOURRIER","AUSSAC VADALLE",16560,16024,"BOURRIER","Création"]
["16024222H2",54,null,null,"LE BOURG","AUSSAC VADALLE",16560,16024,"BOURG","Création"]
["16024222H2",54,null,"RTE","ROUTE DE SAINT ANGEAU","AUSSAC VADALLE",16560,16024,"ANGEAU","Création"]
["16024222H2",54,null,"    ","RUE DE LA REPUBLIQUE","AUSSAC VADALLE",16560,16024,"REPUBLIQUE","Création"]
["16024222EM",55,null,null,"CHEZ BOURRIER","AUSSAC VADALLE",16560,16024,"BOURRIER","Création"]
["16024222EM",55,null,"LD","LIEU DIT VADALLE","AUSSAC VADALLE",16560,16024,"VADALLE","Création"]
["16024222EM",55,null,"RTE","ROUTE DE SAINT ANGEAU","AUSSAC VADALLE",16560,16024,"ANGEAU","Création"]
["16024222EM",55,null,null,"LE BOURG","AUSSAC VADALLE",16560,16024,"BOURG","Création"]
["16024222EM",55,null,"    ","RUE DE LA REPUBLIQUE","AUSSAC VADALLE",16560,16024,"REPUBLIQUE","Création"]
["16024222G3",56,null,"LD","LIEU DIT VADALLE","AUSSAC VADALLE",16560,16024,"VADALLE","Création"]
["16024222G3",56,null,null,"CHEZ BOURRIER","AUSSAC VADALLE",16560,16024,"BOURRIER","Création"]
["16024222G3",56,null,"RTE","ROUTE DE SAINT ANGEAU","AUSSAC VADALLE",16560,16024,"ANGEAU","Création"]
["16024222G3",56,null,null,"LE BOURG","AUSSAC VADALLE",16560,16024,"BOURG","Création"]
["16024222G3",56,null,"    ","RUE DE LA REPUBLIQUE","AUSSAC VADALLE",16560,16024,"REPUBLIQUE","Création"]
["16024222EY",58,null,"LD","LIEU DIT VADALLE","AUSSAC VADALLE",16560,16024,"VADALLE","Création"]
["16024222EY",58,null,null,"CHEZ BOURRIER","AUSSAC VADALLE",16560,16024,"BOURRIER","Création"]
["16024222EY",58,null,null,"LE BOURG","AUSSAC VADALLE",16560,16024,"BOURG","Création"]
["16024222EY",58,null,"RTE","ROUTE DE SAINT ANGEAU","AUSSAC VADALLE",16560,16024,"ANGEAU","Création"]
["16024222EY",58,null,"    ","RUE DE LA REPUBLIQUE","AUSSAC VADALLE",16560,16024,"REPUBLIQUE","Création"]
["16024222IB",60,"B",null,"CHEZ BOURRIER","AUSSAC VADALLE",16560,16024,"BOURRIER","Création"]
["16024222IB",60,"B","LD","LIEU DIT VADALLE","AUSSAC VADALLE",16560,16024,"VADALLE","Création"]
["16024222EX",60,null,null,"CHEZ BOURRIER","AUSSAC VADALLE",16560,16024,"BOURRIER","Création"]
["16024222EX",60,null,"LD","LIEU DIT VADALLE","AUSSAC VADALLE",16560,16024,"VADALLE","Création"]
["16024222EX",60,null,null,"LE BOURG","AUSSAC VADALLE",16560,16024,"BOURG","Création"]
["16024222IB",60,"B",null,"LE BOURG","AUSSAC VADALLE",16560,16024,"BOURG","Création"]
["16024222EX",60,null,"RTE","ROUTE DE SAINT ANGEAU","AUSSAC VADALLE",16560,16024,"ANGEAU","Création"]
["16024222IB",60,"B","RTE","ROUTE DE SAINT ANGEAU","AUSSAC VADALLE",16560,16024,"ANGEAU","Création"]
["16024222EX",60,null,"    ","RUE DE LA REPUBLIQUE","AUSSAC VADALLE",16560,16024,"REPUBLIQUE","Création"]
["16024222IB",60,"B","    ","RUE DE LA REPUBLIQUE","AUSSAC VADALLE",16560,16024,"REPUBLIQUE","Création"]
["16024222G9",61,null,null,"CHEZ BOURRIER","AUSSAC VADALLE",16560,16024,"BOURRIER","Création"]
["16024222G9",61,null,"LD","LIEU DIT VADALLE","AUSSAC VADALLE",16560,16024,"VADALLE","Création"]
["16024222G9",61,null,null,"LE BOURG","AUSSAC VADALLE",16560,16024,"BOURG","Création"]
["16024222G9",61,null,"RTE","ROUTE DE SAINT ANGEAU","AUSSAC VADALLE",16560,16024,"ANGEAU","Création"]
["16024222G9",61,null,"    ","RUE DE LA REPUBLIQUE","AUSSAC VADALLE",16560,16024,"REPUBLIQUE","Création"]
["16024222I3",63,null,"LD","LIEU DIT VADALLE","AUSSAC VADALLE",16560,16024,"VADALLE","Création"]
["16024222I3",63,null,null,"CHEZ BOURRIER","AUSSAC VADALLE",16560,16024,"BOURRIER","Création"]
["16024222I3",63,null,"RTE","ROUTE DE SAINT ANGEAU","AUSSAC VADALLE",16560,16024,"ANGEAU","Création"]
["16024222I3",63,null,null,"LE BOURG","AUSSAC VADALLE",16560,16024,"BOURG","Création"]
["16024222I3",63,null,"    ","RUE DE LA REPUBLIQUE","AUSSAC VADALLE",16560,16024,"REPUBLIQUE","Création"]
["16024222H3",64,null,"LD","LIEU DIT VADALLE","AUSSAC VADALLE",16560,16024,"VADALLE","Création"]
["16024222H3",64,null,null,"CHEZ BOURRIER","AUSSAC VADALLE",16560,16024,"BOURRIER","Création"]
["16024222H3",64,null,null,"LE BOURG","AUSSAC VADALLE",16560,16024,"BOURG","Création"]
["16024222H3",64,null,"RTE","ROUTE DE SAINT ANGEAU","AUSSAC VADALLE",16560,16024,"ANGEAU","Création"]
["16024222H3",64,null,"    ","RUE DE LA REPUBLIQUE","AUSSAC VADALLE",16560,16024,"REPUBLIQUE","Création"]
["16024222GT",65,null,null,"CHEZ BOURRIER","AUSSAC VADALLE",16560,16024,"BOURRIER","Création"]
["16024222GT",65,null,"LD","LIEU DIT VADALLE","AUSSAC VADALLE",16560,16024,"VADALLE","Création"]
["16024222GT",65,null,"RTE","ROUTE DE SAINT ANGEAU","AUSSAC VADALLE",16560,16024,"ANGEAU","Création"]
["16024222GT",65,null,null,"LE BOURG","AUSSAC VADALLE",16560,16024,"BOURG","Création"]
["16024222GT",65,null,"    ","RUE DE LA REPUBLIQUE","AUSSAC VADALLE",16560,16024,"REPUBLIQUE","Création"]
["16024222HY",68,null,null,"CHEZ BOURRIER","AUSSAC VADALLE",16560,16024,"BOURRIER","Création"]
["16024222HY",68,null,"LD","LIEU DIT VADALLE","AUSSAC VADALLE",16560,16024,"VADALLE","Création"]
["16024222HY",68,null,null,"LE BOURG","AUSSAC VADALLE",16560,16024,"BOURG","Création"]
["16024222HY",68,null,"RTE","ROUTE DE SAINT ANGEAU","AUSSAC VADALLE",16560,16024,"ANGEAU","Création"]
["16024222HY",68,null,"    ","RUE DE LA REPUBLIQUE","AUSSAC VADALLE",16560,16024,"REPUBLIQUE","Création"]
["16024222GS",71,null,null,"CHEZ BOURRIER","AUSSAC VADALLE",16560,16024,"BOURRIER","Création"]
["16024222GS",71,null,"LD","LIEU DIT VADALLE","AUSSAC VADALLE",16560,16024,"VADALLE","Création"]
["16024222GS",71,null,null,"LE BOURG","AUSSAC VADALLE",16560,16024,"BOURG","Création"]
["16024222GS",71,null,"RTE","ROUTE DE SAINT ANGEAU","AUSSAC VADALLE",16560,16024,"ANGEAU","Création"]
["16024222GS",71,null,"    ","RUE DE LA REPUBLIQUE","AUSSAC VADALLE",16560,16024,"REPUBLIQUE","Création"]
["16024222G4",73,null,null,"CHEZ BOURRIER","AUSSAC VADALLE",16560,16024,"BOURRIER","Création"]
["16024222G4",73,null,"LD","LIEU DIT VADALLE","AUSSAC VADALLE",16560,16024,"VADALLE","Création"]
["16024222G4",73,null,null,"LE BOURG","AUSSAC VADALLE",16560,16024,"BOURG","Création"]
["16024222G4",73,null,"RTE","ROUTE DE SAINT ANGEAU","AUSSAC VADALLE",16560,16024,"ANGEAU","Création"]
["16024222G4",73,null,"    ","RUE DE LA REPUBLIQUE","AUSSAC VADALLE",16560,16024,"REPUBLIQUE","Création"]
["16024222ER",75,null,"LD","LIEU DIT VADALLE","AUSSAC VADALLE",16560,16024,"VADALLE","Création"]
["16024222ER",75,null,null,"CHEZ BOURRIER","AUSSAC VADALLE",16560,16024,"BOURRIER","Création"]
["16024222ER",75,null,"RTE","ROUTE DE SAINT ANGEAU","AUSSAC VADALLE",16560,16024,"ANGEAU","Création"]
["16024222ER",75,null,null,"LE BOURG","AUSSAC VADALLE",16560,16024,"BOURG","Création"]
["16024222ER",75,null,"    ","RUE DE LA REPUBLIQUE","AUSSAC VADALLE",16560,16024,"REPUBLIQUE","Création"]
["160242222Y",null,null,null,"CHEZ BOURRIER","AUSSAC VADALLE",16560,16024,"BOURRIER","Initial"]
["160242222Y",null,null,"LD","LIEU DIT VADALLE","AUSSAC VADALLE",16560,16024,"VADALLE","Initial"]
["160242222Y",null,null,null,"LE BOURG","AUSSAC VADALLE",16560,16024,"BOURG","Initial"]
["160242222Y",null,null,"RTE","ROUTE DE SAINT ANGEAU","AUSSAC VADALLE",16560,16024,"ANGEAU","Initial"]
["160242222Y",null,null,"    ","RUE DE LA REPUBLIQUE","AUSSAC VADALLE",16560,16024,"REPUBLIQUE","Initial"]
["160242222Z",null,null,null,"LE GRAND PLANTIER","AUSSAC VADALLE",16560,16024,"PLANTIER","Suppression"]
["16024222LG",1,null,"    ","RUE MON PLAISIR","AUSSAC VADALLE",16560,16024,"PLAISIR","Création"]
["16024222LA",2,null,"    ","RUE MON PLAISIR","AUSSAC VADALLE",16560,16024,"PLAISIR","Création"]
["16024222LE",4,null,"    ","RUE MON PLAISIR","AUSSAC VADALLE",16560,16024,"PLAISIR","Création"]
[1602422232,null,null,"    ","RUE MON PLAISIR","AUSSAC VADALLE",16560,16024,"PLAISIR","Initial"]
["160242229B",1,null,"LD","LIEU DIT RAVAUD","AUSSAC VADALLE",16560,16024,"RAVAUD","Création"]
["160242229B",1,null,"    ","RUE DU BOIS DE LA CROIX","AUSSAC VADALLE",16560,16024,"CROIX","Création","Attribuée"]
["160242229I",2,null,"LD","LIEU DIT RAVAUD","AUSSAC VADALLE",16560,16024,"RAVAUD","Création"]
["160242229I",2,null,"    ","RUE DU BOIS DE LA CROIX","AUSSAC VADALLE",16560,16024,"CROIX","Création","Attribuée"]
["16024222AP",3,null,"LD","LIEU DIT RAVAUD","AUSSAC VADALLE",16560,16024,"RAVAUD","Création"]
["16024222AP",3,null,"    ","RUE DU BOIS DE LA CROIX","AUSSAC VADALLE",16560,16024,"CROIX","Création","Attribuée"]
["16024222AT",4,null,"LD","LIEU DIT RAVAUD","AUSSAC VADALLE",16560,16024,"RAVAUD","Création"]
["16024222AT",4,null,"    ","RUE DU BOIS DE LA CROIX","AUSSAC VADALLE",16560,16024,"CROIX","Création","Attribuée"]
["16024222AN",5,null,"LD","LIEU DIT RAVAUD","AUSSAC VADALLE",16560,16024,"RAVAUD","Création"]
["16024222AN",5,null,"    ","RUE DU BOIS DE LA CROIX","AUSSAC VADALLE",16560,16024,"CROIX","Création","Attribuée"]
["160242229S",8,null,"LD","LIEU DIT RAVAUD","AUSSAC VADALLE",16560,16024,"RAVAUD","Création"]
["160242229S",8,null,"    ","RUE DU BOIS DE LA CROIX","AUSSAC VADALLE",16560,16024,"CROIX","Création","Attribuée"]
["160242227Z",10,null,"LD","LIEU DIT RAVAUD","AUSSAC VADALLE",16560,16024,"RAVAUD","Création"]
["160242227Z",10,null,"    ","RUE DU BOIS DE LA CROIX","AUSSAC VADALLE",16560,16024,"CROIX","Création"]
["160242227S",12,null,"LD","LIEU DIT RAVAUD","AUSSAC VADALLE",16560,16024,"RAVAUD","Création"]
["160242227S",12,null,"    ","RUE DU BOIS DE LA CROIX","AUSSAC VADALLE",16560,16024,"CROIX","Création","Attribuée"]
["16024222AG",14,null,"LD","LIEU DIT RAVAUD","AUSSAC VADALLE",16560,16024,"RAVAUD","Création"]
["16024222AG",14,null,"    ","RUE DU BOIS DE LA CROIX","AUSSAC VADALLE",16560,16024,"CROIX","Création","Attribuée"]
["160242229E",15,null,"LD","LIEU DIT RAVAUD","AUSSAC VADALLE",16560,16024,"RAVAUD","Création"]
["160242229E",15,null,"    ","RUE DU BOIS DE LA CROIX","AUSSAC VADALLE",16560,16024,"CROIX","Création","Attribuée"]
["16024222A2",17,null,"LD","LIEU DIT RAVAUD","AUSSAC VADALLE",16560,16024,"RAVAUD","Création"]
["16024222A2",17,null,"    ","RUE DU BOIS DE LA CROIX","AUSSAC VADALLE",16560,16024,"CROIX","Création","Attribuée"]
["160242229L",19,null,"LD","LIEU DIT RAVAUD","AUSSAC VADALLE",16560,16024,"RAVAUD","Création"]
["160242229L",19,null,"    ","RUE DU BOIS DE LA CROIX","AUSSAC VADALLE",16560,16024,"CROIX","Création","Attribuée"]
[1602422299,20,null,"LD","LIEU DIT RAVAUD","AUSSAC VADALLE",16560,16024,"RAVAUD","Création"]
[1602422299,20,null,"    ","RUE DU BOIS DE LA CROIX","AUSSAC VADALLE",16560,16024,"CROIX","Création","Attribuée"]
[1602422233,null,null,"LD","LIEU DIT RAVAUD","AUSSAC VADALLE",16560,16024,"RAVAUD","Initial"]
[1602422233,null,null,"    ","RUE DU BOIS DE LA CROIX","AUSSAC VADALLE",16560,16024,"CROIX","Initial"]
["16024222B2",1,null,"LD","LIEU DIT VADALLE","AUSSAC VADALLE",16560,16024,"VADALLE","Création"]
["16024222B2",1,null,"    ","RUE DES PINS","AUSSAC VADALLE",16560,16024,"PINS","Création"]
["16024222GZ",3,null,"LD","LIEU DIT VADALLE","AUSSAC VADALLE",16560,16024,"VADALLE","Création"]
["16024222GZ",3,null,"    ","RUE DES PINS","AUSSAC VADALLE",16560,16024,"PINS","Création"]
["16024222HH",5,null,"LD","LIEU DIT VADALLE","AUSSAC VADALLE",16560,16024,"VADALLE","Création"]
["16024222HH",5,null,"    ","RUE DES PINS","AUSSAC VADALLE",16560,16024,"PINS","Création"]
["16024222IN",6,null,"LD","LIEU DIT VADALLE","AUSSAC VADALLE",16560,16024,"VADALLE","Création"]
["16024222IN",6,null,"    ","RUE DES PINS","AUSSAC VADALLE",16560,16024,"PINS","Création"]
["16024222GL",8,null,"LD","LIEU DIT VADALLE","AUSSAC VADALLE",16560,16024,"VADALLE","Création"]
["16024222GL",8,null,"    ","RUE DES PINS","AUSSAC VADALLE",16560,16024,"PINS","Création"]
["16024222GM",9,null,"LD","LIEU DIT VADALLE","AUSSAC VADALLE",16560,16024,"VADALLE","Création"]
["16024222GM",9,null,"    ","RUE DES PINS","AUSSAC VADALLE",16560,16024,"PINS","Création"]
["16024222GN",10,null,"LD","LIEU DIT VADALLE","AUSSAC VADALLE",16560,16024,"VADALLE","Création"]
["16024222GN",10,null,"    ","RUE DES PINS","AUSSAC VADALLE",16560,16024,"PINS","Création"]
["16024222H9",11,null,"LD","LIEU DIT VADALLE","AUSSAC VADALLE",16560,16024,"VADALLE","Création"]
["16024222H9",11,null,"    ","RUE DES PINS","AUSSAC VADALLE",16560,16024,"PINS","Création"]
["16024222HE",12,null,"LD","LIEU DIT VADALLE","AUSSAC VADALLE",16560,16024,"VADALLE","Création"]
["16024222HE",12,null,"    ","RUE DES PINS","AUSSAC VADALLE",16560,16024,"PINS","Création"]
["16024222GB",13,null,"LD","LIEU DIT VADALLE","AUSSAC VADALLE",16560,16024,"VADALLE","Création"]
["16024222GB",13,null,"    ","RUE DES PINS","AUSSAC VADALLE",16560,16024,"PINS","Création"]
["16024222GX",14,null,"LD","LIEU DIT VADALLE","AUSSAC VADALLE",16560,16024,"VADALLE","Création"]
["16024222GX",14,null,"    ","RUE DES PINS","AUSSAC VADALLE",16560,16024,"PINS","Création"]
["16024222HB",15,null,"LD","LIEU DIT VADALLE","AUSSAC VADALLE",16560,16024,"VADALLE","Création"]
["16024222HB",15,null,"    ","RUE DES PINS","AUSSAC VADALLE",16560,16024,"PINS","Création"]
[1602422234,null,null,"LD","LIEU DIT VADALLE","AUSSAC VADALLE",16560,16024,"VADALLE","Initial"]
[1602422234,null,null,"    ","RUE DES PINS","AUSSAC VADALLE",16560,16024,"PINS","Initial"]
["16024222L2",1,null,null,"RUE DU FOND DU BOIS","AUSSAC VADALLE",16560,16024,"BOIS","Création"]
["16024222IZ",2,null,null,"RUE DU FOND DU BOIS","AUSSAC VADALLE",16560,16024,"BOIS","Création"]
["16024222IY",3,null,null,"RUE DU FOND DU BOIS","AUSSAC VADALLE",16560,16024,"BOIS","Création"]
["16024222IX",7,null,null,"RUE DU FOND DU BOIS","AUSSAC VADALLE",16560,16024,"BOIS","Création"]
[1602422236,null,null,null,"RUE DU FOND DU BOIS","AUSSAC VADALLE",16560,16024,"BOIS","Initial"]
["16024222C6",2,null,"LD","LIEU DIT VADALLE","AUSSAC VADALLE",16560,16024,"VADALLE","Création"]
["16024222C6",2,null,"LD","LIEU DIT LA GRANGE","AUSSAC VADALLE",16560,16024,"GRANGE","Création"]
["16024222C6",2,null,"PL","PLACE DE LA CHAUME","AUSSAC VADALLE",16560,16024,"CHAUME","Création"]
["16024222CV",4,null,"LD","LIEU DIT VADALLE","AUSSAC VADALLE",16560,16024,"VADALLE","Création"]
["16024222CV",4,null,"LD","LIEU DIT LA GRANGE","AUSSAC VADALLE",16560,16024,"GRANGE","Création"]
["16024222CV",4,null,"PL","PLACE DE LA CHAUME","AUSSAC VADALLE",16560,16024,"CHAUME","Création"]
[1602422237,null,null,"LD","LIEU DIT VADALLE","AUSSAC VADALLE",16560,16024,"VADALLE","Initial"]
[1602422237,null,null,"LD","LIEU DIT LA GRANGE","AUSSAC VADALLE",16560,16024,"GRANGE","Initial"]
[1602422237,null,null,"PL","PLACE DE LA CHAUME","AUSSAC VADALLE",16560,16024,"CHAUME","Initial"]
["16024222EB",1,null,"LD","LIEU DIT VADALLE","AUSSAC VADALLE",16560,16024,"VADALLE","Création"]
["16024222EB",1,null,"    ","CHEMIN DU COLOMBIER","AUSSAC VADALLE",16560,16024,"COLOMBIER","Création"]
["16024222IM",3,null,"LD","LIEU DIT VADALLE","AUSSAC VADALLE",16560,16024,"VADALLE","Création"]
["16024222IM",3,null,"    ","CHEMIN DU COLOMBIER","AUSSAC VADALLE",16560,16024,"COLOMBIER","Création"]
["16024222CC",5,null,"LD","LIEU DIT VADALLE","AUSSAC VADALLE",16560,16024,"VADALLE","Création"]
["16024222CC",5,null,"    ","CHEMIN DU COLOMBIER","AUSSAC VADALLE",16560,16024,"COLOMBIER","Création"]
["16024222IL",6,null,"LD","LIEU DIT VADALLE","AUSSAC VADALLE",16560,16024,"VADALLE","Création"]
["16024222IL",6,null,"    ","CHEMIN DU COLOMBIER","AUSSAC VADALLE",16560,16024,"COLOMBIER","Création"]
["16024222CH",7,null,"LD","LIEU DIT VADALLE","AUSSAC VADALLE",16560,16024,"VADALLE","Création"]
["16024222CH",7,null,"    ","CHEMIN DU COLOMBIER","AUSSAC VADALLE",16560,16024,"COLOMBIER","Création"]
["16024222L6",9,null,"LD","LIEU DIT VADALLE","AUSSAC VADALLE",16560,16024,"VADALLE","Création"]
["16024222L6",9,null,"    ","CHEMIN DU COLOMBIER","AUSSAC VADALLE",16560,16024,"COLOMBIER","Création"]
[1602422239,null,null,"LD","LIEU DIT VADALLE","AUSSAC VADALLE",16560,16024,"VADALLE","Initial"]
[1602422239,null,null,"    ","CHEMIN DU COLOMBIER","AUSSAC VADALLE",16560,16024,"COLOMBIER","Initial"]
["16024222H7",2,null,"LD","LIEU DIT VADALLE","AUSSAC VADALLE",16560,16024,"VADALLE","Création"]
["16024222H7",2,null,"    ","RUE DE LA COMBE","AUSSAC VADALLE",16560,16024,"COMBE","Création"]
["16024222GV",3,null,"LD","LIEU DIT VADALLE","AUSSAC VADALLE",16560,16024,"VADALLE","Création"]
["16024222GV",3,null,"    ","RUE DE LA COMBE","AUSSAC VADALLE",16560,16024,"COMBE","Création"]
["16024222B3",5,null,"LD","LIEU DIT VADALLE","AUSSAC VADALLE",16560,16024,"VADALLE","Création"]
["16024222B3",5,null,"    ","RUE DE LA COMBE","AUSSAC VADALLE",16560,16024,"COMBE","Création"]
["16024222G2",7,null,"LD","LIEU DIT VADALLE","AUSSAC VADALLE",16560,16024,"VADALLE","Création"]
["16024222G2",7,null,"    ","RUE DE LA COMBE","AUSSAC VADALLE",16560,16024,"COMBE","Création"]
["16024222I4",10,null,"LD","LIEU DIT VADALLE","AUSSAC VADALLE",16560,16024,"VADALLE","Création"]
["16024222I4",10,null,"    ","RUE DE LA COMBE","AUSSAC VADALLE",16560,16024,"COMBE","Création"]
["16024222IR",12,null,"LD","LIEU DIT VADALLE","AUSSAC VADALLE",16560,16024,"VADALLE","Création"]
["16024222IR",12,null,"    ","RUE DE LA COMBE","AUSSAC VADALLE",16560,16024,"COMBE","Création"]
["16024222IS",14,null,"LD","LIEU DIT VADALLE","AUSSAC VADALLE",16560,16024,"VADALLE","Création"]
["16024222IS",14,null,"    ","RUE DE LA COMBE","AUSSAC VADALLE",16560,16024,"COMBE","Création"]
["16024222L4",16,null,"LD","LIEU DIT VADALLE","AUSSAC VADALLE",16560,16024,"VADALLE","Création"]
["16024222L4",16,null,"    ","RUE DE LA COMBE","AUSSAC VADALLE",16560,16024,"COMBE","Création"]
["16024222EU",19,null,"LD","LIEU DIT VADALLE","AUSSAC VADALLE",16560,16024,"VADALLE","Création"]
["16024222EU",19,null,"    ","RUE DE LA COMBE","AUSSAC VADALLE",16560,16024,"COMBE","Création"]
["16024222GC",21,null,"LD","LIEU DIT VADALLE","AUSSAC VADALLE",16560,16024,"VADALLE","Création"]
["16024222GC",21,null,"    ","RUE DE LA COMBE","AUSSAC VADALLE",16560,16024,"COMBE","Création"]
["16024222HM",24,null,"LD","LIEU DIT VADALLE","AUSSAC VADALLE",16560,16024,"VADALLE","Création"]
["16024222HM",24,null,"    ","RUE DE LA COMBE","AUSSAC VADALLE",16560,16024,"COMBE","Création"]
["16024222HZ",26,null,"LD","LIEU DIT VADALLE","AUSSAC VADALLE",16560,16024,"VADALLE","Création"]
["16024222HZ",26,null,"    ","RUE DE LA COMBE","AUSSAC VADALLE",16560,16024,"COMBE","Création"]
["16024222HA",28,null,"LD","LIEU DIT VADALLE","AUSSAC VADALLE",16560,16024,"VADALLE","Création"]
["16024222HA",28,null,"    ","RUE DE LA COMBE","AUSSAC VADALLE",16560,16024,"COMBE","Création"]
["16024222HC",30,null,"LD","LIEU DIT VADALLE","AUSSAC VADALLE",16560,16024,"VADALLE","Création"]
["16024222HC",30,null,"    ","RUE DE LA COMBE","AUSSAC VADALLE",16560,16024,"COMBE","Création"]
["160242223A",null,null,"LD","LIEU DIT VADALLE","AUSSAC VADALLE",16560,16024,"VADALLE","Initial"]
["160242223A",null,null,"    ","RUE DE LA COMBE","AUSSAC VADALLE",16560,16024,"COMBE","Initial"]
["160242226R",1,null,"IMP","IMPASSE DE LA DUCHESSE","AUSSAC VADALLE",16560,16024,"DUCHESSE","Suppression"]
[1602422276,2,null,"IMP","IMPASSE DE LA DUCHESSE","AUSSAC VADALLE",16560,16024,"DUCHESSE","Suppression"]
["160242227N",3,null,"IMP","IMPASSE DE LA DUCHESSE","AUSSAC VADALLE",16560,16024,"DUCHESSE","Suppression"]
["160242226L",4,null,"IMP","IMPASSE DE LA DUCHESSE","AUSSAC VADALLE",16560,16024,"DUCHESSE","Suppression"]
["160242227A",5,null,"IMP","IMPASSE DE LA DUCHESSE","AUSSAC VADALLE",16560,16024,"DUCHESSE","Suppression"]
["160242224R",12,null,"IMP","IMPASSE DE LA DUCHESSE","AUSSAC VADALLE",16560,16024,"DUCHESSE","Suppression"]
["160242223B",null,null,"IMP","IMPASSE DE LA DUCHESSE","AUSSAC VADALLE",16560,16024,"DUCHESSE","Suppression"]
["160242229Z",12,null,"LD","LIEU DIT LES CARRIERES","AUSSAC VADALLE",16560,16024,"CARRIERES","Création"]
["160242229Z",12,null,"LD","LIEU DIT RAVAUD","AUSSAC VADALLE",16560,16024,"RAVAUD","Création"]
["160242229Z",12,null,"RTE","ROUTE DE LA DUCHESSE","AUSSAC VADALLE",16560,16024,"DUCHESSE","Création","Attribuée"]
["16024222A3",14,null,"LD","LIEU DIT LES CARRIERES","AUSSAC VADALLE",16560,16024,"CARRIERES","Création"]
["16024222A3",14,null,"LD","LIEU DIT RAVAUD","AUSSAC VADALLE",16560,16024,"RAVAUD","Création"]
["16024222A3",14,null,"RTE","ROUTE DE LA DUCHESSE","AUSSAC VADALLE",16560,16024,"DUCHESSE","Création"]
["16024222BI",16,null,"LD","LIEU DIT LES CARRIERES","AUSSAC VADALLE",16560,16024,"CARRIERES","Création"]
["16024222BI",16,null,"LD","LIEU DIT RAVAUD","AUSSAC VADALLE",16560,16024,"RAVAUD","Création"]
["16024222BI",16,null,"RTE","ROUTE DE LA DUCHESSE","AUSSAC VADALLE",16560,16024,"DUCHESSE","Création"]
["16024222AI",18,null,"LD","LIEU DIT LES CARRIERES","AUSSAC VADALLE",16560,16024,"CARRIERES","Création"]
["16024222AI",18,null,"LD","LIEU DIT RAVAUD","AUSSAC VADALLE",16560,16024,"RAVAUD","Création"]
["16024222AI",18,null,"RTE","ROUTE DE LA DUCHESSE","AUSSAC VADALLE",16560,16024,"DUCHESSE","Création","Attribuée"]
["16024222A9",19,null,"LD","LIEU DIT LES CARRIERES","AUSSAC VADALLE",16560,16024,"CARRIERES","Création"]
["16024222A9",19,null,"LD","LIEU DIT RAVAUD","AUSSAC VADALLE",16560,16024,"RAVAUD","Création"]
["16024222A9",19,null,"RTE","ROUTE DE LA DUCHESSE","AUSSAC VADALLE",16560,16024,"DUCHESSE","Création"]
["16024222AL",20,null,"LD","LIEU DIT LES CARRIERES","AUSSAC VADALLE",16560,16024,"CARRIERES","Création"]
["16024222AL",20,null,"LD","LIEU DIT RAVAUD","AUSSAC VADALLE",16560,16024,"RAVAUD","Création"]
["16024222AL",20,null,"RTE","ROUTE DE LA DUCHESSE","AUSSAC VADALLE",16560,16024,"DUCHESSE","Création","Attribuée"]
["16024222AA",21,null,"LD","LIEU DIT LES CARRIERES","AUSSAC VADALLE",16560,16024,"CARRIERES","Création"]
["16024222AA",21,null,"LD","LIEU DIT RAVAUD","AUSSAC VADALLE",16560,16024,"RAVAUD","Création"]
["16024222AA",21,null,"RTE","ROUTE DE LA DUCHESSE","AUSSAC VADALLE",16560,16024,"DUCHESSE","Création","Attribuée"]
["160242229M",22,null,"LD","LIEU DIT LES CARRIERES","AUSSAC VADALLE",16560,16024,"CARRIERES","Création"]
["160242229M",22,null,"LD","LIEU DIT RAVAUD","AUSSAC VADALLE",16560,16024,"RAVAUD","Création"]
["160242229M",22,null,"RTE","ROUTE DE LA DUCHESSE","AUSSAC VADALLE",16560,16024,"DUCHESSE","Création"]
["160242229T",24,null,"LD","LIEU DIT LES CARRIERES","AUSSAC VADALLE",16560,16024,"CARRIERES","Création"]
["160242229T",24,null,"LD","LIEU DIT RAVAUD","AUSSAC VADALLE",16560,16024,"RAVAUD","Création"]
["160242229T",24,null,"RTE","ROUTE DE LA DUCHESSE","AUSSAC VADALLE",16560,16024,"DUCHESSE","Création","Attribuée"]
["16024222BG",27,null,"LD","LIEU DIT LES CARRIERES","AUSSAC VADALLE",16560,16024,"CARRIERES","Création"]
["16024222BG",27,null,"LD","LIEU DIT RAVAUD","AUSSAC VADALLE",16560,16024,"RAVAUD","Création"]
["16024222BG",27,null,"RTE","ROUTE DE LA DUCHESSE","AUSSAC VADALLE",16560,16024,"DUCHESSE","Création"]
["160242229U",31,null,"LD","LIEU DIT LES CARRIERES","AUSSAC VADALLE",16560,16024,"CARRIERES","Création"]
["160242229U",31,null,"LD","LIEU DIT RAVAUD","AUSSAC VADALLE",16560,16024,"RAVAUD","Création"]
["160242229U",31,null,"RTE","ROUTE DE LA DUCHESSE","AUSSAC VADALLE",16560,16024,"DUCHESSE","Création"]
["160242223C",null,null,"LD","LIEU DIT LES CARRIERES","AUSSAC VADALLE",16560,16024,"CARRIERES","Initial"]
["160242223C",null,null,"LD","LIEU DIT RAVAUD","AUSSAC VADALLE",16560,16024,"RAVAUD","Initial"]
["160242223C",null,null,"RTE","ROUTE DE LA DUCHESSE","AUSSAC VADALLE",16560,16024,"DUCHESSE","Initial"]
["16024222LV",9,null,"PL","PLACE JEAN BAPTISTE HERIARD","AUSSAC VADALLE",16560,16024,"HERIARD","Création"]
["16024222LV",9,null,"LD","LIEU DIT AUSSAC","AUSSAC VADALLE",16560,16024,"AUSSAC","Création"]
["16024222LV",9,null,null,"LE GRAND PLANTIER","AUSSAC VADALLE",16560,16024,"PLANTIER","Création"]
["16024222LV",9,null,"    ","RUE DU CHATEAU D EAU","AUSSAC VADALLE",16560,16024,"EAU","Création"]
[1602422272,11,null,"PL","PLACE JEAN BAPTISTE HERIARD","AUSSAC VADALLE",16560,16024,"HERIARD","Création"]
[1602422272,11,null,"LD","LIEU DIT AUSSAC","AUSSAC VADALLE",16560,16024,"AUSSAC","Création"]
[1602422272,11,null,null,"LE GRAND PLANTIER","AUSSAC VADALLE",16560,16024,"PLANTIER","Création"]
[1602422272,11,null,"    ","RUE DU CHATEAU D EAU","AUSSAC VADALLE",16560,16024,"EAU","Création"]
[1602422263,12,null,"PL","PLACE JEAN BAPTISTE HERIARD","AUSSAC VADALLE",16560,16024,"HERIARD","Création"]
[1602422263,12,null,"LD","LIEU DIT AUSSAC","AUSSAC VADALLE",16560,16024,"AUSSAC","Création"]
[1602422263,12,null,null,"LE GRAND PLANTIER","AUSSAC VADALLE",16560,16024,"PLANTIER","Création"]
[1602422263,12,null,"    ","RUE DU CHATEAU D EAU","AUSSAC VADALLE",16560,16024,"EAU","Création"]
["16024222LY",13,"B","PL","PLACE JEAN BAPTISTE HERIARD","AUSSAC VADALLE",16560,16024,"HERIARD","Création"]
["160242224N",13,null,"PL","PLACE JEAN BAPTISTE HERIARD","AUSSAC VADALLE",16560,16024,"HERIARD","Création"]
["16024222LY",13,"B","LD","LIEU DIT AUSSAC","AUSSAC VADALLE",16560,16024,"AUSSAC","Création"]
["160242224N",13,null,"LD","LIEU DIT AUSSAC","AUSSAC VADALLE",16560,16024,"AUSSAC","Création"]
["16024222LY",13,"B",null,"LE GRAND PLANTIER","AUSSAC VADALLE",16560,16024,"PLANTIER","Création"]
["160242224N",13,null,null,"LE GRAND PLANTIER","AUSSAC VADALLE",16560,16024,"PLANTIER","Création"]
["16024222LY",13,"B","    ","RUE DU CHATEAU D EAU","AUSSAC VADALLE",16560,16024,"EAU","Création"]
["160242224N",13,null,"    ","RUE DU CHATEAU D EAU","AUSSAC VADALLE",16560,16024,"EAU","Création"]
["160242227P",15,null,"PL","PLACE JEAN BAPTISTE HERIARD","AUSSAC VADALLE",16560,16024,"HERIARD","Création"]
["160242227P",15,null,"LD","LIEU DIT AUSSAC","AUSSAC VADALLE",16560,16024,"AUSSAC","Création"]
["160242227P",15,null,null,"LE GRAND PLANTIER","AUSSAC VADALLE",16560,16024,"PLANTIER","Création"]
["160242227P",15,null,"    ","RUE DU CHATEAU D EAU","AUSSAC VADALLE",16560,16024,"EAU","Création"]
["160242226S",17,null,"PL","PLACE JEAN BAPTISTE HERIARD","AUSSAC VADALLE",16560,16024,"HERIARD","Création"]
["160242226S",17,null,"LD","LIEU DIT AUSSAC","AUSSAC VADALLE",16560,16024,"AUSSAC","Création"]
["160242226S",17,null,null,"LE GRAND PLANTIER","AUSSAC VADALLE",16560,16024,"PLANTIER","Création"]
["160242226S",17,null,"    ","RUE DU CHATEAU D EAU","AUSSAC VADALLE",16560,16024,"EAU","Création"]
[1602422269,19,"B","PL","PLACE JEAN BAPTISTE HERIARD","AUSSAC VADALLE",16560,16024,"HERIARD","Création"]
["160242226M",19,null,"PL","PLACE JEAN BAPTISTE HERIARD","AUSSAC VADALLE",16560,16024,"HERIARD","Création"]
[1602422269,19,"B","LD","LIEU DIT AUSSAC","AUSSAC VADALLE",16560,16024,"AUSSAC","Création"]
["160242226M",19,null,"LD","LIEU DIT AUSSAC","AUSSAC VADALLE",16560,16024,"AUSSAC","Création"]
[1602422269,19,"B",null,"LE GRAND PLANTIER","AUSSAC VADALLE",16560,16024,"PLANTIER","Création"]
["160242226M",19,null,null,"LE GRAND PLANTIER","AUSSAC VADALLE",16560,16024,"PLANTIER","Création"]
[1602422269,19,"B","    ","RUE DU CHATEAU D EAU","AUSSAC VADALLE",16560,16024,"EAU","Création"]
["160242226M",19,null,"    ","RUE DU CHATEAU D EAU","AUSSAC VADALLE",16560,16024,"EAU","Création"]
["160242227G",21,null,"PL","PLACE JEAN BAPTISTE HERIARD","AUSSAC VADALLE",16560,16024,"HERIARD","Création"]
["160242227G",21,null,"LD","LIEU DIT AUSSAC","AUSSAC VADALLE",16560,16024,"AUSSAC","Création"]
["160242227G",21,null,null,"LE GRAND PLANTIER","AUSSAC VADALLE",16560,16024,"PLANTIER","Création"]
["160242227G",21,null,"    ","RUE DU CHATEAU D EAU","AUSSAC VADALLE",16560,16024,"EAU","Création"]
["160242227C",22,"B","PL","PLACE JEAN BAPTISTE HERIARD","AUSSAC VADALLE",16560,16024,"HERIARD","Création"]
["160242226Z",22,null,"PL","PLACE JEAN BAPTISTE HERIARD","AUSSAC VADALLE",16560,16024,"HERIARD","Création"]
["160242226Z",22,null,"LD","LIEU DIT AUSSAC","AUSSAC VADALLE",16560,16024,"AUSSAC","Création"]
["160242227C",22,"B","LD","LIEU DIT AUSSAC","AUSSAC VADALLE",16560,16024,"AUSSAC","Création"]
["160242226Z",22,null,null,"LE GRAND PLANTIER","AUSSAC VADALLE",16560,16024,"PLANTIER","Création"]
["160242227C",22,"B",null,"LE GRAND PLANTIER","AUSSAC VADALLE",16560,16024,"PLANTIER","Création"]
["160242227C",22,"B","    ","RUE DU CHATEAU D EAU","AUSSAC VADALLE",16560,16024,"EAU","Création"]
["160242226Z",22,null,"    ","RUE DU CHATEAU D EAU","AUSSAC VADALLE",16560,16024,"EAU","Création"]
["160242227B",23,null,"PL","PLACE JEAN BAPTISTE HERIARD","AUSSAC VADALLE",16560,16024,"HERIARD","Création"]
["160242227B",23,null,"LD","LIEU DIT AUSSAC","AUSSAC VADALLE",16560,16024,"AUSSAC","Création"]
["160242227B",23,null,null,"LE GRAND PLANTIER","AUSSAC VADALLE",16560,16024,"PLANTIER","Création"]
["160242227B",23,null,"    ","RUE DU CHATEAU D EAU","AUSSAC VADALLE",16560,16024,"EAU","Création"]
["160242226Y",24,null,"PL","PLACE JEAN BAPTISTE HERIARD","AUSSAC VADALLE",16560,16024,"HERIARD","Création"]
["160242226Y",24,null,"LD","LIEU DIT AUSSAC","AUSSAC VADALLE",16560,16024,"AUSSAC","Création"]
["160242226Y",24,null,null,"LE GRAND PLANTIER","AUSSAC VADALLE",16560,16024,"PLANTIER","Création"]
["160242226Y",24,null,"    ","RUE DU CHATEAU D EAU","AUSSAC VADALLE",16560,16024,"EAU","Création"]
["160242226B",25,null,"PL","PLACE JEAN BAPTISTE HERIARD","AUSSAC VADALLE",16560,16024,"HERIARD","Création"]
["160242226B",25,null,"LD","LIEU DIT AUSSAC","AUSSAC VADALLE",16560,16024,"AUSSAC","Création"]
["160242226B",25,null,null,"LE GRAND PLANTIER","AUSSAC VADALLE",16560,16024,"PLANTIER","Création"]
["160242226B",25,null,"    ","RUE DU CHATEAU D EAU","AUSSAC VADALLE",16560,16024,"EAU","Création"]
[1602422277,26,null,"PL","PLACE JEAN BAPTISTE HERIARD","AUSSAC VADALLE",16560,16024,"HERIARD","Création"]
[1602422277,26,null,"LD","LIEU DIT AUSSAC","AUSSAC VADALLE",16560,16024,"AUSSAC","Création"]
[1602422277,26,null,null,"LE GRAND PLANTIER","AUSSAC VADALLE",16560,16024,"PLANTIER","Création"]
[1602422277,26,null,"    ","RUE DU CHATEAU D EAU","AUSSAC VADALLE",16560,16024,"EAU","Création"]
["160242224P",28,null,"PL","PLACE JEAN BAPTISTE HERIARD","AUSSAC VADALLE",16560,16024,"HERIARD","Création"]
["160242224P",28,null,"LD","LIEU DIT AUSSAC","AUSSAC VADALLE",16560,16024,"AUSSAC","Création"]
["160242224P",28,null,null,"LE GRAND PLANTIER","AUSSAC VADALLE",16560,16024,"PLANTIER","Création"]
["160242224P",28,null,"    ","RUE DU CHATEAU D EAU","AUSSAC VADALLE",16560,16024,"EAU","Création"]
["160242227L",31,null,"PL","PLACE JEAN BAPTISTE HERIARD","AUSSAC VADALLE",16560,16024,"HERIARD","Création"]
["160242227L",31,null,"LD","LIEU DIT AUSSAC","AUSSAC VADALLE",16560,16024,"AUSSAC","Création"]
["160242227L",31,null,null,"LE GRAND PLANTIER","AUSSAC VADALLE",16560,16024,"PLANTIER","Création"]
["160242227L",31,null,"    ","RUE DU CHATEAU D EAU","AUSSAC VADALLE",16560,16024,"EAU","Création"]
["160242224V",35,null,"PL","PLACE JEAN BAPTISTE HERIARD","AUSSAC VADALLE",16560,16024,"HERIARD","Création"]
["160242224V",35,null,"LD","LIEU DIT AUSSAC","AUSSAC VADALLE",16560,16024,"AUSSAC","Création"]
["160242224V",35,null,null,"LE GRAND PLANTIER","AUSSAC VADALLE",16560,16024,"PLANTIER","Création"]
["160242224V",35,null,"    ","RUE DU CHATEAU D EAU","AUSSAC VADALLE",16560,16024,"EAU","Création"]
["160242224T",36,null,"PL","PLACE JEAN BAPTISTE HERIARD","AUSSAC VADALLE",16560,16024,"HERIARD","Création"]
["160242224T",36,null,"LD","LIEU DIT AUSSAC","AUSSAC VADALLE",16560,16024,"AUSSAC","Création"]
["160242224T",36,null,null,"LE GRAND PLANTIER","AUSSAC VADALLE",16560,16024,"PLANTIER","Création"]
["160242224T",36,null,"    ","RUE DU CHATEAU D EAU","AUSSAC VADALLE",16560,16024,"EAU","Création"]
["160242226V",37,null,"PL","PLACE JEAN BAPTISTE HERIARD","AUSSAC VADALLE",16560,16024,"HERIARD","Création"]
["160242226V",37,null,"LD","LIEU DIT AUSSAC","AUSSAC VADALLE",16560,16024,"AUSSAC","Création"]
["160242226V",37,null,null,"LE GRAND PLANTIER","AUSSAC VADALLE",16560,16024,"PLANTIER","Création"]
["160242226V",37,null,"    ","RUE DU CHATEAU D EAU","AUSSAC VADALLE",16560,16024,"EAU","Création"]
["160242226G",38,null,"PL","PLACE JEAN BAPTISTE HERIARD","AUSSAC VADALLE",16560,16024,"HERIARD","Création"]
["160242226G",38,null,"LD","LIEU DIT AUSSAC","AUSSAC VADALLE",16560,16024,"AUSSAC","Création"]
["160242226G",38,null,null,"LE GRAND PLANTIER","AUSSAC VADALLE",16560,16024,"PLANTIER","Création"]
["160242226G",38,null,"    ","RUE DU CHATEAU D EAU","AUSSAC VADALLE",16560,16024,"EAU","Création"]
["160242226E",39,null,"PL","PLACE JEAN BAPTISTE HERIARD","AUSSAC VADALLE",16560,16024,"HERIARD","Création"]
["160242226E",39,null,"LD","LIEU DIT AUSSAC","AUSSAC VADALLE",16560,16024,"AUSSAC","Création"]
["160242226E",39,null,null,"LE GRAND PLANTIER","AUSSAC VADALLE",16560,16024,"PLANTIER","Création"]
["160242226E",39,null,"    ","RUE DU CHATEAU D EAU","AUSSAC VADALLE",16560,16024,"EAU","Création"]
[1602422262,41,null,"PL","PLACE JEAN BAPTISTE HERIARD","AUSSAC VADALLE",16560,16024,"HERIARD","Création"]
["160242227I",41,"B","PL","PLACE JEAN BAPTISTE HERIARD","AUSSAC VADALLE",16560,16024,"HERIARD","Création"]
["160242227I",41,"B","LD","LIEU DIT AUSSAC","AUSSAC VADALLE",16560,16024,"AUSSAC","Création"]
[1602422262,41,null,"LD","LIEU DIT AUSSAC","AUSSAC VADALLE",16560,16024,"AUSSAC","Création"]
["160242227I",41,"B",null,"LE GRAND PLANTIER","AUSSAC VADALLE",16560,16024,"PLANTIER","Création"]
[1602422262,41,null,null,"LE GRAND PLANTIER","AUSSAC VADALLE",16560,16024,"PLANTIER","Création"]
[1602422262,41,null,"    ","RUE DU CHATEAU D EAU","AUSSAC VADALLE",16560,16024,"EAU","Création"]
["160242227I",41,"B","    ","RUE DU CHATEAU D EAU","AUSSAC VADALLE",16560,16024,"EAU","Création"]
["160242224L",42,null,"PL","PLACE JEAN BAPTISTE HERIARD","AUSSAC VADALLE",16560,16024,"HERIARD","Création"]
["160242224L",42,null,"LD","LIEU DIT AUSSAC","AUSSAC VADALLE",16560,16024,"AUSSAC","Création"]
["160242224L",42,null,null,"LE GRAND PLANTIER","AUSSAC VADALLE",16560,16024,"PLANTIER","Création"]
["160242224L",42,null,"    ","RUE DU CHATEAU D EAU","AUSSAC VADALLE",16560,16024,"EAU","Création"]
["16024222A4",43,null,"PL","PLACE JEAN BAPTISTE HERIARD","AUSSAC VADALLE",16560,16024,"HERIARD","Création"]
["16024222A4",43,null,"LD","LIEU DIT AUSSAC","AUSSAC VADALLE",16560,16024,"AUSSAC","Création"]
["16024222A4",43,null,null,"LE GRAND PLANTIER","AUSSAC VADALLE",16560,16024,"PLANTIER","Création"]
["16024222A4",43,null,"    ","RUE DU CHATEAU D EAU","AUSSAC VADALLE",16560,16024,"EAU","Création"]
["160242227Y",44,null,"PL","PLACE JEAN BAPTISTE HERIARD","AUSSAC VADALLE",16560,16024,"HERIARD","Création"]
["160242227Y",44,null,"LD","LIEU DIT AUSSAC","AUSSAC VADALLE",16560,16024,"AUSSAC","Création"]
["160242227Y",44,null,null,"LE GRAND PLANTIER","AUSSAC VADALLE",16560,16024,"PLANTIER","Création"]
["160242227Y",44,null,"    ","RUE DU CHATEAU D EAU","AUSSAC VADALLE",16560,16024,"EAU","Création"]
["16024222AU",45,null,"PL","PLACE JEAN BAPTISTE HERIARD","AUSSAC VADALLE",16560,16024,"HERIARD","Création"]
["16024222AU",45,null,"LD","LIEU DIT AUSSAC","AUSSAC VADALLE",16560,16024,"AUSSAC","Création"]
["16024222AU",45,null,null,"LE GRAND PLANTIER","AUSSAC VADALLE",16560,16024,"PLANTIER","Création"]
["16024222AU",45,null,"    ","RUE DU CHATEAU D EAU","AUSSAC VADALLE",16560,16024,"EAU","Création"]
[1602422293,47,null,"PL","PLACE JEAN BAPTISTE HERIARD","AUSSAC VADALLE",16560,16024,"HERIARD","Création"]
[1602422293,47,null,"LD","LIEU DIT AUSSAC","AUSSAC VADALLE",16560,16024,"AUSSAC","Création"]
[1602422293,47,null,null,"LE GRAND PLANTIER","AUSSAC VADALLE",16560,16024,"PLANTIER","Création"]
[1602422293,47,null,"    ","RUE DU CHATEAU D EAU","AUSSAC VADALLE",16560,16024,"EAU","Création"]
["160242229R",54,null,"PL","PLACE JEAN BAPTISTE HERIARD","AUSSAC VADALLE",16560,16024,"HERIARD","Création"]
["160242229R",54,null,"LD","LIEU DIT AUSSAC","AUSSAC VADALLE",16560,16024,"AUSSAC","Création"]
["160242229R",54,null,null,"LE GRAND PLANTIER","AUSSAC VADALLE",16560,16024,"PLANTIER","Création"]
["160242229R",54,null,"    ","RUE DU CHATEAU D EAU","AUSSAC VADALLE",16560,16024,"EAU","Création"]
["160242227T",56,null,"PL","PLACE JEAN BAPTISTE HERIARD","AUSSAC VADALLE",16560,16024,"HERIARD","Création"]
["160242227T",56,null,"LD","LIEU DIT AUSSAC","AUSSAC VADALLE",16560,16024,"AUSSAC","Création"]
["160242227T",56,null,null,"LE GRAND PLANTIER","AUSSAC VADALLE",16560,16024,"PLANTIER","Création"]
["160242227T",56,null,"    ","RUE DU CHATEAU D EAU","AUSSAC VADALLE",16560,16024,"EAU","Création"]
["16024222LC",58,null,"PL","PLACE JEAN BAPTISTE HERIARD","AUSSAC VADALLE",16560,16024,"HERIARD","Création"]
["16024222LC",58,null,"LD","LIEU DIT AUSSAC","AUSSAC VADALLE",16560,16024,"AUSSAC","Création"]
["16024222LC",58,null,null,"LE GRAND PLANTIER","AUSSAC VADALLE",16560,16024,"PLANTIER","Création"]
["16024222LC",58,null,"    ","RUE DU CHATEAU D EAU","AUSSAC VADALLE",16560,16024,"EAU","Création"]
["160242223E",null,null,"PL","PLACE JEAN BAPTISTE HERIARD","AUSSAC VADALLE",16560,16024,"HERIARD","Initial"]
["160242223E",null,null,"LD","LIEU DIT AUSSAC","AUSSAC VADALLE",16560,16024,"AUSSAC","Initial"]
["160242223E",null,null,null,"LE GRAND PLANTIER","AUSSAC VADALLE",16560,16024,"PLANTIER","Initial"]
["160242223E",null,null,"    ","RUE DU CHATEAU D EAU","AUSSAC VADALLE",16560,16024,"EAU","Initial"]
["16024222CP",1,null,"LD","LIEU DIT VADALLE","AUSSAC VADALLE",16560,16024,"VADALLE","Création"]
["16024222CP",1,null,"    ","RUE DE LA FONTAINE","AUSSAC VADALLE",16560,16024,"FONTAINE","Création"]
["16024222C4",2,null,"LD","LIEU DIT VADALLE","AUSSAC VADALLE",16560,16024,"VADALLE","Création"]
["16024222C4",2,null,"    ","RUE DE LA FONTAINE","AUSSAC VADALLE",16560,16024,"FONTAINE","Création"]
["16024222BN",3,null,"LD","LIEU DIT VADALLE","AUSSAC VADALLE",16560,16024,"VADALLE","Création"]
["16024222BN",3,null,"    ","RUE DE LA FONTAINE","AUSSAC VADALLE",16560,16024,"FONTAINE","Création"]
["16024222C7",4,null,"LD","LIEU DIT VADALLE","AUSSAC VADALLE",16560,16024,"VADALLE","Création"]
["16024222C7",4,null,"    ","RUE DE LA FONTAINE","AUSSAC VADALLE",16560,16024,"FONTAINE","Création"]
["16024222CB",6,null,"LD","LIEU DIT VADALLE","AUSSAC VADALLE",16560,16024,"VADALLE","Création"]
["16024222CB",6,null,"    ","RUE DE LA FONTAINE","AUSSAC VADALLE",16560,16024,"FONTAINE","Création"]
["16024222BM",7,null,"LD","LIEU DIT VADALLE","AUSSAC VADALLE",16560,16024,"VADALLE","Création"]
["16024222BM",7,null,"    ","RUE DE LA FONTAINE","AUSSAC VADALLE",16560,16024,"FONTAINE","Création"]
["16024222C3",8,null,"LD","LIEU DIT VADALLE","AUSSAC VADALLE",16560,16024,"VADALLE","Création"]
["16024222C3",8,null,"    ","RUE DE LA FONTAINE","AUSSAC VADALLE",16560,16024,"FONTAINE","Création"]
["16024222BP",10,null,"LD","LIEU DIT VADALLE","AUSSAC VADALLE",16560,16024,"VADALLE","Création"]
["16024222BP",10,null,"    ","RUE DE LA FONTAINE","AUSSAC VADALLE",16560,16024,"FONTAINE","Création"]
["16024222BZ",11,null,"LD","LIEU DIT VADALLE","AUSSAC VADALLE",16560,16024,"VADALLE","Création"]
["16024222BZ",11,null,"    ","RUE DE LA FONTAINE","AUSSAC VADALLE",16560,16024,"FONTAINE","Création"]
["16024222CA",13,null,"LD","LIEU DIT VADALLE","AUSSAC VADALLE",16560,16024,"VADALLE","Création"]
["16024222CA",13,null,"    ","RUE DE LA FONTAINE","AUSSAC VADALLE",16560,16024,"FONTAINE","Création"]
["16024222EI",15,null,"LD","LIEU DIT VADALLE","AUSSAC VADALLE",16560,16024,"VADALLE","Création"]
["16024222EI",15,null,"    ","RUE DE LA FONTAINE","AUSSAC VADALLE",16560,16024,"FONTAINE","Création"]
[1.6024222E+16,17,null,"LD","LIEU DIT VADALLE","AUSSAC VADALLE",1.56,16024,"VADALLE","Création"]
[1.6024222E+16,17,null,"    ","RUE DE LA FONTAINE","AUSSAC VADALLE",16560,16024,"FONTAINE","Création"]
["160242223G",null,null,"LD","LIEU DIT VADALLE","AUSSAC VADALLE",16560,16024,"VADALLE","Initial"]
["160242223G",null,null,"    ","RUE DE LA FONTAINE","AUSSAC VADALLE",16560,16024,"FONTAINE","Initial"]
["160242227H",2,null,"LD","LIEU DIT AUSSAC","AUSSAC VADALLE",16560,16024,"AUSSAC","Création"]
["160242227H",2,null,"    ","RUE DU FOUR","AUSSAC VADALLE",16560,16024,"FOUR","Création"]
["160242226I",3,null,"LD","LIEU DIT AUSSAC","AUSSAC VADALLE",16560,16024,"AUSSAC","Création"]
["160242226I",3,null,"    ","RUE DU FOUR","AUSSAC VADALLE",16560,16024,"FOUR","Création"]
["160242224U",4,null,"LD","LIEU DIT AUSSAC","AUSSAC VADALLE",16560,16024,"AUSSAC","Création"]
["160242224U",4,null,"    ","RUE DU FOUR","AUSSAC VADALLE",16560,16024,"FOUR","Création"]
["160242226T",5,null,"LD","LIEU DIT AUSSAC","AUSSAC VADALLE",16560,16024,"AUSSAC","Création"]
["160242226T",5,null,"    ","RUE DU FOUR","AUSSAC VADALLE",16560,16024,"FOUR","Création"]
["16024222B7",6,null,"LD","LIEU DIT AUSSAC","AUSSAC VADALLE",16560,16024,"AUSSAC","Création"]
["16024222B7",6,null,"    ","RUE DU FOUR","AUSSAC VADALLE",16560,16024,"FOUR","Création"]
["16024222LI",7,null,"LD","LIEU DIT AUSSAC","AUSSAC VADALLE",16560,16024,"AUSSAC","Création"]
["16024222LI",7,null,"    ","RUE DU FOUR","AUSSAC VADALLE",16560,16024,"FOUR","Création"]
["160242223H",null,null,"LD","LIEU DIT AUSSAC","AUSSAC VADALLE",16560,16024,"AUSSAC","Initial"]
["160242223H",null,null,"    ","RUE DU FOUR","AUSSAC VADALLE",16560,16024,"FOUR","Initial"]
["16024222AY",1,null,"LD","LIEU DIT VADALLE","AUSSAC VADALLE",16560,16024,"VADALLE","Création"]
["16024222AY",1,null,null,"FRAICHE BISE","AUSSAC VADALLE",16560,16024,"BISE","Création"]
["16024222AY",1,null,"    ","RUE DE FRAICHE BISE","AUSSAC VADALLE",16560,16024,"BISE","Création"]
["16024222AX",2,null,"LD","LIEU DIT VADALLE","AUSSAC VADALLE",16560,16024,"VADALLE","Création"]
["16024222AX",2,null,null,"FRAICHE BISE","AUSSAC VADALLE",16560,16024,"BISE","Création"]
["16024222AX",2,null,"    ","RUE DE FRAICHE BISE","AUSSAC VADALLE",16560,16024,"BISE","Création"]
["16024222AZ",3,null,"LD","LIEU DIT VADALLE","AUSSAC VADALLE",16560,16024,"VADALLE","Création"]
["16024222AZ",3,null,null,"FRAICHE BISE","AUSSAC VADALLE",16560,16024,"BISE","Création"]
["16024222AZ",3,null,"    ","RUE DE FRAICHE BISE","AUSSAC VADALLE",16560,16024,"BISE","Création"]
["16024222L7",4,null,"LD","LIEU DIT VADALLE","AUSSAC VADALLE",16560,16024,"VADALLE","Création"]
["16024222L7",4,null,null,"FRAICHE BISE","AUSSAC VADALLE",16560,16024,"BISE","Création"]
["16024222L7",4,null,"    ","RUE DE FRAICHE BISE","AUSSAC VADALLE",16560,16024,"BISE","Création"]
["16024222B4",5,null,"LD","LIEU DIT VADALLE","AUSSAC VADALLE",16560,16024,"VADALLE","Suppression"]
["16024222B4",5,null,null,"FRAICHE BISE","AUSSAC VADALLE",16560,16024,"BISE","Suppression"]
["16024222B4",5,null,"    ","RUE DE FRAICHE BISE","AUSSAC VADALLE",16560,16024,"BISE","Suppression"]
["16024222B6",7,null,"LD","LIEU DIT VADALLE","AUSSAC VADALLE",16560,16024,"VADALLE","Création"]
["16024222B6",7,null,null,"FRAICHE BISE","AUSSAC VADALLE",16560,16024,"BISE","Création"]
["16024222B6",7,null,"    ","RUE DE FRAICHE BISE","AUSSAC VADALLE",16560,16024,"BISE","Création"]
["16024222BV",9,null,"LD","LIEU DIT VADALLE","AUSSAC VADALLE",16560,16024,"VADALLE","Création"]
["16024222BV",9,null,null,"FRAICHE BISE","AUSSAC VADALLE",16560,16024,"BISE","Création"]
["16024222BV",9,null,"    ","RUE DE FRAICHE BISE","AUSSAC VADALLE",16560,16024,"BISE","Création"]
["16024222CT",11,null,"LD","LIEU DIT VADALLE","AUSSAC VADALLE",16560,16024,"VADALLE","Création"]
["16024222CT",11,null,null,"FRAICHE BISE","AUSSAC VADALLE",16560,16024,"BISE","Création"]
["16024222CT",11,null,"    ","RUE DE FRAICHE BISE","AUSSAC VADALLE",16560,16024,"BISE","Création"]
["16024222CN",13,null,"LD","LIEU DIT VADALLE","AUSSAC VADALLE",16560,16024,"VADALLE","Création"]
["16024222CN",13,null,null,"FRAICHE BISE","AUSSAC VADALLE",16560,16024,"BISE","Création"]
["16024222CN",13,null,"    ","RUE DE FRAICHE BISE","AUSSAC VADALLE",16560,16024,"BISE","Création"]
[1602422200,17,null,"LD","LIEU DIT VADALLE","AUSSAC VADALLE",1.56,16024,"VADALLE","Création"]
[1602422200,17,null,null,"FRAICHE BISE","AUSSAC VADALLE",1.56,16024,"BISE","Création"]
[1602422200,17,null,"    ","RUE DE FRAICHE BISE","AUSSAC VADALLE",16560,16024,"BISE","Création"]
["16024222EH",18,null,"LD","LIEU DIT VADALLE","AUSSAC VADALLE",16560,16024,"VADALLE","Création"]
["16024222EH",18,null,null,"FRAICHE BISE","AUSSAC VADALLE",16560,16024,"BISE","Création"]
["16024222EH",18,null,"    ","RUE DE FRAICHE BISE","AUSSAC VADALLE",16560,16024,"BISE","Création"]
["16024222EC",20,null,"LD","LIEU DIT VADALLE","AUSSAC VADALLE",16560,16024,"VADALLE","Création"]
["16024222EC",20,null,null,"FRAICHE BISE","AUSSAC VADALLE",16560,16024,"BISE","Création"]
["16024222EC",20,null,"    ","RUE DE FRAICHE BISE","AUSSAC VADALLE",16560,16024,"BISE","Création"]
["16024222BX",22,null,"LD","LIEU DIT VADALLE","AUSSAC VADALLE",16560,16024,"VADALLE","Création"]
["16024222BX",22,null,null,"FRAICHE BISE","AUSSAC VADALLE",16560,16024,"BISE","Création"]
["16024222BX",22,null,"    ","RUE DE FRAICHE BISE","AUSSAC VADALLE",16560,16024,"BISE","Création"]
[160242220000,23,"B","LD","LIEU DIT VADALLE","AUSSAC VADALLE",1.56,16024,"VADALLE","Création"]
["16024222EE",23,null,"LD","LIEU DIT VADALLE","AUSSAC VADALLE",16560,16024,"VADALLE","Création"]
[160242220000,23,"B",null,"FRAICHE BISE","AUSSAC VADALLE",1.56,16024,"BISE","Création"]
["16024222EE",23,null,null,"FRAICHE BISE","AUSSAC VADALLE",16560,16024,"BISE","Création"]
[160242220000,23,"B","    ","RUE DE FRAICHE BISE","AUSSAC VADALLE",16560,16024,"BISE","Création"]
["16024222EE",23,null,"    ","RUE DE FRAICHE BISE","AUSSAC VADALLE",16560,16024,"BISE","Création"]
["16024222C9",26,null,"LD","LIEU DIT VADALLE","AUSSAC VADALLE",16560,16024,"VADALLE","Création"]
["16024222C9",26,null,null,"FRAICHE BISE","AUSSAC VADALLE",16560,16024,"BISE","Création"]
["16024222C9",26,null,"    ","RUE DE FRAICHE BISE","AUSSAC VADALLE",16560,16024,"BISE","Création"]
[160242220000000,27,"T","LD","LIEU DIT VADALLE","AUSSAC VADALLE",1.56,16024,"VADALLE","Création"]
["16024222BS",27,null,"LD","LIEU DIT VADALLE","AUSSAC VADALLE",16560,16024,"VADALLE","Création"]
["16024222BR",27,"B","LD","LIEU DIT VADALLE","AUSSAC VADALLE",16560,16024,"VADALLE","Création"]
[160242220000000,27,"T",null,"FRAICHE BISE","AUSSAC VADALLE",1.56,16024,"BISE","Création"]
["16024222BR",27,"B",null,"FRAICHE BISE","AUSSAC VADALLE",16560,16024,"BISE","Création"]
["16024222BS",27,null,null,"FRAICHE BISE","AUSSAC VADALLE",16560,16024,"BISE","Création"]
[160242220000000,27,"T","    ","RUE DE FRAICHE BISE","AUSSAC VADALLE",16560,16024,"BISE","Création"]
["16024222BR",27,"B","    ","RUE DE FRAICHE BISE","AUSSAC VADALLE",16560,16024,"BISE","Création"]
["16024222BS",27,null,"    ","RUE DE FRAICHE BISE","AUSSAC VADALLE",16560,16024,"BISE","Création"]
["16024222CY",28,null,"LD","LIEU DIT VADALLE","AUSSAC VADALLE",16560,16024,"VADALLE","Création"]
["16024222CY",28,null,null,"FRAICHE BISE","AUSSAC VADALLE",16560,16024,"BISE","Création"]
["16024222CY",28,null,"    ","RUE DE FRAICHE BISE","AUSSAC VADALLE",16560,16024,"BISE","Création"]
["16024222BU",29,null,"LD","LIEU DIT VADALLE","AUSSAC VADALLE",16560,16024,"VADALLE","Création"]
["16024222BU",29,null,null,"FRAICHE BISE","AUSSAC VADALLE",16560,16024,"BISE","Création"]
["16024222BU",29,null,"    ","RUE DE FRAICHE BISE","AUSSAC VADALLE",16560,16024,"BISE","Création"]
["16024222CG",30,null,"LD","LIEU DIT VADALLE","AUSSAC VADALLE",16560,16024,"VADALLE","Création"]
["16024222CG",30,null,null,"FRAICHE BISE","AUSSAC VADALLE",16560,16024,"BISE","Création"]
["16024222CG",30,null,"    ","RUE DE FRAICHE BISE","AUSSAC VADALLE",16560,16024,"BISE","Création"]
["16024222EG",31,null,"LD","LIEU DIT VADALLE","AUSSAC VADALLE",16560,16024,"VADALLE","Création"]
["16024222EG",31,null,null,"FRAICHE BISE","AUSSAC VADALLE",16560,16024,"BISE","Création"]
["16024222EG",31,null,"    ","RUE DE FRAICHE BISE","AUSSAC VADALLE",16560,16024,"BISE","Création"]
["16024222CZ",32,null,"LD","LIEU DIT VADALLE","AUSSAC VADALLE",16560,16024,"VADALLE","Création"]
["16024222CZ",32,null,null,"FRAICHE BISE","AUSSAC VADALLE",16560,16024,"BISE","Création"]
["16024222CZ",32,null,"    ","RUE DE FRAICHE BISE","AUSSAC VADALLE",16560,16024,"BISE","Création"]
["16024222CS",33,null,"LD","LIEU DIT VADALLE","AUSSAC VADALLE",16560,16024,"VADALLE","Création"]
["16024222CS",33,null,null,"FRAICHE BISE","AUSSAC VADALLE",16560,16024,"BISE","Création"]
["16024222CS",33,null,"    ","RUE DE FRAICHE BISE","AUSSAC VADALLE",16560,16024,"BISE","Création"]
["16024222BY",34,null,"LD","LIEU DIT VADALLE","AUSSAC VADALLE",16560,16024,"VADALLE","Création"]
["16024222BY",34,null,null,"FRAICHE BISE","AUSSAC VADALLE",16560,16024,"BISE","Création"]
["16024222BY",34,null,"    ","RUE DE FRAICHE BISE","AUSSAC VADALLE",16560,16024,"BISE","Création"]
["16024222CR",35,null,"LD","LIEU DIT VADALLE","AUSSAC VADALLE",16560,16024,"VADALLE","Création"]
["16024222CR",35,null,null,"FRAICHE BISE","AUSSAC VADALLE",16560,16024,"BISE","Création"]
["16024222CR",35,null,"    ","RUE DE FRAICHE BISE","AUSSAC VADALLE",16560,16024,"BISE","Création"]
["16024222CX",36,null,"LD","LIEU DIT VADALLE","AUSSAC VADALLE",16560,16024,"VADALLE","Création"]
["16024222CX",36,null,null,"FRAICHE BISE","AUSSAC VADALLE",16560,16024,"BISE","Création"]
["16024222CX",36,null,"    ","RUE DE FRAICHE BISE","AUSSAC VADALLE",16560,16024,"BISE","Création"]
[16024222000000,38,null,"LD","LIEU DIT VADALLE","AUSSAC VADALLE",1.56,16024,"VADALLE","Création"]
[16024222000000,38,null,null,"FRAICHE BISE","AUSSAC VADALLE",1.56,16024,"BISE","Création"]
[16024222000000,38,null,"    ","RUE DE FRAICHE BISE","AUSSAC VADALLE",16560,16024,"BISE","Création"]
["160242223I",null,null,"LD","LIEU DIT VADALLE","AUSSAC VADALLE",16560,16024,"VADALLE","Initial"]
["160242223I",null,null,null,"FRAICHE BISE","AUSSAC VADALLE",16560,16024,"BISE","Initial"]
["160242223I",null,null,"    ","RUE DE FRAICHE BISE","AUSSAC VADALLE",16560,16024,"BISE","Initial"]
["16024222G6",1,null,"ALL","ALLEE DES HORTENSIAS","AUSSAC VADALLE",16560,16024,"HORTENSIAS","Création"]
["16024222II",2,null,"ALL","ALLEE DES HORTENSIAS","AUSSAC VADALLE",16560,16024,"HORTENSIAS","Création"]
["16024222LB",4,null,"ALL","ALLEE DES HORTENSIAS","AUSSAC VADALLE",16560,16024,"HORTENSIAS","Création"]
["16024222IH",5,null,"ALL","ALLEE DES HORTENSIAS","AUSSAC VADALLE",16560,16024,"HORTENSIAS","Création"]
["16024222L3",7,null,"ALL","ALLEE DES HORTENSIAS","AUSSAC VADALLE",16560,16024,"HORTENSIAS","Création"]
["16024222EL",9,null,"ALL","ALLEE DES HORTENSIAS","AUSSAC VADALLE",16560,16024,"HORTENSIAS","Création"]
["160242223L",null,null,"ALL","ALLEE DES HORTENSIAS","AUSSAC VADALLE",16560,16024,"HORTENSIAS","Initial"]
["160242227U",1,null,"LD","LIEU DIT RAVAUD","AUSSAC VADALLE",16560,16024,"RAVAUD","Création"]
["160242227U",1,null,"    ","RUE DU LOGIS","AUSSAC VADALLE",16560,16024,"LOGIS","Création","Attribuée"]
["16024222AM",4,null,"LD","LIEU DIT RAVAUD","AUSSAC VADALLE",16560,16024,"RAVAUD","Création"]
["16024222AM",4,null,"    ","RUE DU LOGIS","AUSSAC VADALLE",16560,16024,"LOGIS","Création"]
["16024222M2",10,null,"LD","LIEU DIT RAVAUD","AUSSAC VADALLE",16560,16024,"RAVAUD","Création"]
["16024222M2",10,null,"    ","RUE DU LOGIS","AUSSAC VADALLE",16560,16024,"LOGIS","Création"]
["16024222M3",14,null,"LD","LIEU DIT RAVAUD","AUSSAC VADALLE",16560,16024,"RAVAUD","Création"]
["16024222M3",14,null,"    ","RUE DU LOGIS","AUSSAC VADALLE",16560,16024,"LOGIS","Création"]
["160242223M",null,null,"LD","LIEU DIT RAVAUD","AUSSAC VADALLE",16560,16024,"RAVAUD","Initial"]
["160242223M",null,null,"    ","RUE DU LOGIS","AUSSAC VADALLE",16560,16024,"LOGIS","Initial"]
["16024222G7",1,null,"LD","LIEU DIT VADALLE","AUSSAC VADALLE",16560,16024,"VADALLE","Création"]
["16024222G7",1,null,"    ","RUE DE LA MARECHALERIE","AUSSAC VADALLE",16560,16024,"MARECHALERIE","Création"]
["16024222HS",2,null,"LD","LIEU DIT VADALLE","AUSSAC VADALLE",16560,16024,"VADALLE","Création"]
["16024222HS",2,null,"    ","RUE DE LA MARECHALERIE","AUSSAC VADALLE",16560,16024,"MARECHALERIE","Création"]
["16024222GH",3,null,"LD","LIEU DIT VADALLE","AUSSAC VADALLE",16560,16024,"VADALLE","Création"]
["16024222GH",3,null,"    ","RUE DE LA MARECHALERIE","AUSSAC VADALLE",16560,16024,"MARECHALERIE","Création"]
["16024222HU",5,null,"LD","LIEU DIT VADALLE","AUSSAC VADALLE",16560,16024,"VADALLE","Création"]
["16024222HU",5,null,"    ","RUE DE LA MARECHALERIE","AUSSAC VADALLE",16560,16024,"MARECHALERIE","Création"]
["16024222HN",7,null,"LD","LIEU DIT VADALLE","AUSSAC VADALLE",16560,16024,"VADALLE","Création"]
["16024222HN",7,null,"    ","RUE DE LA MARECHALERIE","AUSSAC VADALLE",16560,16024,"MARECHALERIE","Création"]
["16024222I7",9,null,"LD","LIEU DIT VADALLE","AUSSAC VADALLE",16560,16024,"VADALLE","Création"]
["16024222I7",9,null,"    ","RUE DE LA MARECHALERIE","AUSSAC VADALLE",16560,16024,"MARECHALERIE","Création"]
["16024222HL",10,null,"LD","LIEU DIT VADALLE","AUSSAC VADALLE",16560,16024,"VADALLE","Création"]
["16024222HL",10,null,"    ","RUE DE LA MARECHALERIE","AUSSAC VADALLE",16560,16024,"MARECHALERIE","Création"]
["16024222I6",12,null,"LD","LIEU DIT VADALLE","AUSSAC VADALLE",16560,16024,"VADALLE","Création"]
["16024222I6",12,null,"    ","RUE DE LA MARECHALERIE","AUSSAC VADALLE",16560,16024,"MARECHALERIE","Création"]
["16024222IC",13,null,"LD","LIEU DIT VADALLE","AUSSAC VADALLE",16560,16024,"VADALLE","Création"]
["16024222IC",13,null,"    ","RUE DE LA MARECHALERIE","AUSSAC VADALLE",16560,16024,"MARECHALERIE","Création"]
["16024222H6",14,null,"LD","LIEU DIT VADALLE","AUSSAC VADALLE",16560,16024,"VADALLE","Création"]
["16024222H6",14,null,"    ","RUE DE LA MARECHALERIE","AUSSAC VADALLE",16560,16024,"MARECHALERIE","Création"]
["16024222ET",18,null,"LD","LIEU DIT VADALLE","AUSSAC VADALLE",16560,16024,"VADALLE","Création"]
["16024222ET",18,null,"    ","RUE DE LA MARECHALERIE","AUSSAC VADALLE",16560,16024,"MARECHALERIE","Création"]
["160242223N",null,null,"LD","LIEU DIT VADALLE","AUSSAC VADALLE",16560,16024,"VADALLE","Initial"]
["160242223N",null,null,"    ","RUE DE LA MARECHALERIE","AUSSAC VADALLE",16560,16024,"MARECHALERIE","Initial"]
["160242229V",2,null,"LD","LIEU DIT RAVAUD","AUSSAC VADALLE",16560,16024,"RAVAUD","Création"]
["160242229V",2,null,"    ","CHEMIN DU MOULIN","AUSSAC VADALLE",16560,16024,"MOULIN","Création","Attribuée"]
["16024222AV",5,null,"LD","LIEU DIT RAVAUD","AUSSAC VADALLE",16560,16024,"RAVAUD","Création"]
["16024222AV",5,null,"    ","CHEMIN DU MOULIN","AUSSAC VADALLE",16560,16024,"MOULIN","Création"]
["16024222BE",6,null,"LD","LIEU DIT RAVAUD","AUSSAC VADALLE",16560,16024,"RAVAUD","Création"]
["16024222BE",6,null,"    ","CHEMIN DU MOULIN","AUSSAC VADALLE",16560,16024,"MOULIN","Création","Attribuée"]
["16024222AE",10,null,"LD","LIEU DIT RAVAUD","AUSSAC VADALLE",16560,16024,"RAVAUD","Création"]
["16024222AE",10,null,"    ","CHEMIN DU MOULIN","AUSSAC VADALLE",16560,16024,"MOULIN","Création","Attribuée"]
["16024222A6",12,null,"LD","LIEU DIT RAVAUD","AUSSAC VADALLE",16560,16024,"RAVAUD","Création"]
["16024222A6",12,null,"    ","CHEMIN DU MOULIN","AUSSAC VADALLE",16560,16024,"MOULIN","Création","Attribuée"]
["16024222AB",14,null,"LD","LIEU DIT RAVAUD","AUSSAC VADALLE",16560,16024,"RAVAUD","Création"]
["16024222AB",14,null,"    ","CHEMIN DU MOULIN","AUSSAC VADALLE",16560,16024,"MOULIN","Création"]
["160242223P",null,null,"LD","LIEU DIT RAVAUD","AUSSAC VADALLE",16560,16024,"RAVAUD","Initial"]
["160242223P",null,null,"    ","CHEMIN DU MOULIN","AUSSAC VADALLE",16560,16024,"MOULIN","Initial"]
["160242223R",null,null,"ALL","ALLEE DES NOYERS","AUSSAC VADALLE",16560,16024,"NOYERS","Initial"]
["16024222AC",1,null,"LD","LIEU DIT RAVAUD","AUSSAC VADALLE",16560,16024,"RAVAUD","Création"]
["16024222AC",1,null,"    ","RUE DU PRIEURE","AUSSAC VADALLE",16560,16024,"PRIEURE","Création","Attribuée"]
["16024222AR",2,null,"LD","LIEU DIT RAVAUD","AUSSAC VADALLE",16560,16024,"RAVAUD","Création"]
["16024222AR",2,null,"    ","RUE DU PRIEURE","AUSSAC VADALLE",16560,16024,"PRIEURE","Création","Attribuée"]
[1602422294,3,null,"LD","LIEU DIT RAVAUD","AUSSAC VADALLE",16560,16024,"RAVAUD","Création"]
[1602422294,3,null,"    ","RUE DU PRIEURE","AUSSAC VADALLE",16560,16024,"PRIEURE","Création","Attribuée"]
["16024222BH",5,null,"LD","LIEU DIT RAVAUD","AUSSAC VADALLE",16560,16024,"RAVAUD","Création"]
["16024222BH",5,null,"    ","RUE DU PRIEURE","AUSSAC VADALLE",16560,16024,"PRIEURE","Création","Attribuée"]
["160242229Y",6,null,"LD","LIEU DIT RAVAUD","AUSSAC VADALLE",16560,16024,"RAVAUD","Création"]
["160242229Y",6,null,"    ","RUE DU PRIEURE","AUSSAC VADALLE",16560,16024,"PRIEURE","Création","Attribuée"]
["160242229N",7,null,"LD","LIEU DIT RAVAUD","AUSSAC VADALLE",16560,16024,"RAVAUD","Suppression"]
["160242229N",7,null,"    ","RUE DU PRIEURE","AUSSAC VADALLE",16560,16024,"PRIEURE","Suppression"]
["16024222AS",8,null,"LD","LIEU DIT RAVAUD","AUSSAC VADALLE",16560,16024,"RAVAUD","Création"]
["16024222AS",8,null,"    ","RUE DU PRIEURE","AUSSAC VADALLE",16560,16024,"PRIEURE","Création","Attribuée"]
[1602422296,9,null,"LD","LIEU DIT RAVAUD","AUSSAC VADALLE",16560,16024,"RAVAUD","Création"]
[1602422296,9,null,"    ","RUE DU PRIEURE","AUSSAC VADALLE",16560,16024,"PRIEURE","Création"]
["160242229H",13,null,"LD","LIEU DIT RAVAUD","AUSSAC VADALLE",16560,16024,"RAVAUD","Création"]
["160242229H",13,null,"    ","RUE DU PRIEURE","AUSSAC VADALLE",16560,16024,"PRIEURE","Création","Attribuée"]
["16024222AH",15,null,"LD","LIEU DIT RAVAUD","AUSSAC VADALLE",16560,16024,"RAVAUD","Création"]
["16024222AH",15,null,"    ","RUE DU PRIEURE","AUSSAC VADALLE",16560,16024,"PRIEURE","Création","Attribuée"]
["160242229G",16,null,"LD","LIEU DIT RAVAUD","AUSSAC VADALLE",16560,16024,"RAVAUD","Création"]
["160242229G",16,null,"    ","RUE DU PRIEURE","AUSSAC VADALLE",16560,16024,"PRIEURE","Création","Attribuée"]
["160242229X",18,null,"LD","LIEU DIT RAVAUD","AUSSAC VADALLE",16560,16024,"RAVAUD","Suppression"]
["160242229X",18,null,"    ","RUE DU PRIEURE","AUSSAC VADALLE",16560,16024,"PRIEURE","Suppression"]
["160242229C",19,null,"LD","LIEU DIT RAVAUD","AUSSAC VADALLE",16560,16024,"RAVAUD","Création"]
["160242229C",19,null,"    ","RUE DU PRIEURE","AUSSAC VADALLE",16560,16024,"PRIEURE","Création","Attribuée"]
["16024222A7",20,null,"LD","LIEU DIT RAVAUD","AUSSAC VADALLE",16560,16024,"RAVAUD","Suppression"]
["16024222A7",20,null,"    ","RUE DU PRIEURE","AUSSAC VADALLE",16560,16024,"PRIEURE","Suppression"]
["160242227X",22,null,"LD","LIEU DIT RAVAUD","AUSSAC VADALLE",16560,16024,"RAVAUD","Création"]
["160242227X",22,null,"    ","RUE DU PRIEURE","AUSSAC VADALLE",16560,16024,"PRIEURE","Création","Attribuée"]
["16024222BL",24,null,"LD","LIEU DIT RAVAUD","AUSSAC VADALLE",16560,16024,"RAVAUD","Création"]
["16024222BL",24,null,"    ","RUE DU PRIEURE","AUSSAC VADALLE",16560,16024,"PRIEURE","Création","Attribuée"]
[1602422292,26,null,"LD","LIEU DIT RAVAUD","AUSSAC VADALLE",16560,16024,"RAVAUD","Création"]
[1602422292,26,null,"    ","RUE DU PRIEURE","AUSSAC VADALLE",16560,16024,"PRIEURE","Création","Attribuée"]
["160242229P",33,null,"LD","LIEU DIT RAVAUD","AUSSAC VADALLE",16560,16024,"RAVAUD","Création"]
["160242229P",33,null,"    ","RUE DU PRIEURE","AUSSAC VADALLE",16560,16024,"PRIEURE","Création","Attribuée"]
["16024222LZ",37,null,"LD","LIEU DIT RAVAUD","AUSSAC VADALLE",16560,16024,"RAVAUD","Création"]
["16024222LZ",37,null,"    ","RUE DU PRIEURE","AUSSAC VADALLE",16560,16024,"PRIEURE","Création"]
["160242223S",null,null,"LD","LIEU DIT RAVAUD","AUSSAC VADALLE",16560,16024,"RAVAUD","Initial"]
["160242223S",null,null,"    ","RUE DU PRIEURE","AUSSAC VADALLE",16560,16024,"PRIEURE","Initial"]
["16024222L9",1,null,"LD","LIEU DIT VADALLE","AUSSAC VADALLE",16560,16024,"VADALLE","Création"]
["16024222L9",1,null,"LD","LIEU DIT LA GRANGE","AUSSAC VADALLE",16560,16024,"GRANGE","Création"]
["16024222L9",1,null,"    ","CHEMIN DU PUITS","AUSSAC VADALLE",16560,16024,"PUITS","Création"]
["16024222CU",2,null,"LD","LIEU DIT VADALLE","AUSSAC VADALLE",16560,16024,"VADALLE","Création"]
["16024222CU",2,null,"LD","LIEU DIT LA GRANGE","AUSSAC VADALLE",16560,16024,"GRANGE","Création"]
["16024222CU",2,null,"    ","CHEMIN DU PUITS","AUSSAC VADALLE",16560,16024,"PUITS","Création"]
["16024222CM",3,null,"LD","LIEU DIT VADALLE","AUSSAC VADALLE",16560,16024,"VADALLE","Création"]
["16024222CM",3,null,"LD","LIEU DIT LA GRANGE","AUSSAC VADALLE",16560,16024,"GRANGE","Création"]
["16024222CM",3,null,"    ","CHEMIN DU PUITS","AUSSAC VADALLE",16560,16024,"PUITS","Création"]
["16024222C2",5,null,"LD","LIEU DIT VADALLE","AUSSAC VADALLE",16560,16024,"VADALLE","Création"]
["16024222C2",5,null,"LD","LIEU DIT LA GRANGE","AUSSAC VADALLE",16560,16024,"GRANGE","Création"]
["16024222C2",5,null,"    ","CHEMIN DU PUITS","AUSSAC VADALLE",16560,16024,"PUITS","Création"]
["160242223T",null,null,"LD","LIEU DIT VADALLE","AUSSAC VADALLE",16560,16024,"VADALLE","Initial"]
["160242223T",null,null,"LD","LIEU DIT LA GRANGE","AUSSAC VADALLE",16560,16024,"GRANGE","Initial"]
["160242223T",null,null,"    ","CHEMIN DU PUITS","AUSSAC VADALLE",16560,16024,"PUITS","Initial"]
["16024222LS",1,null,"LD","LIEU DIT VADALLE","AUSSAC VADALLE",16560,16024,"VADALLE","Création"]
["16024222LS",1,null,"    ","RUE DU RAMPEAU","AUSSAC VADALLE",16560,16024,"RAMPEAU","Création"]
["16024222BT",3,null,"LD","LIEU DIT VADALLE","AUSSAC VADALLE",16560,16024,"VADALLE","Création"]
["16024222BT",3,null,"    ","RUE DU RAMPEAU","AUSSAC VADALLE",16560,16024,"RAMPEAU","Création"]
["160242223U",null,null,"LD","LIEU DIT VADALLE","AUSSAC VADALLE",16560,16024,"VADALLE","Initial"]
["160242223U",null,null,"    ","RUE DU RAMPEAU","AUSSAC VADALLE",16560,16024,"RAMPEAU","Initial"]
["16024222BA",1,null,"LD","LIEU DIT RAVAUD","AUSSAC VADALLE",16560,16024,"RAVAUD","Création"]
["16024222BA",1,null,"    ","CHEMIN DE LA TERRIERE","AUSSAC VADALLE",16560,16024,"TERRIERE","Création","Attribuée"]
["16024222BB",3,null,"LD","LIEU DIT RAVAUD","AUSSAC VADALLE",16560,16024,"RAVAUD","Création"]
["16024222BB",3,null,"    ","CHEMIN DE LA TERRIERE","AUSSAC VADALLE",16560,16024,"TERRIERE","Création","Attribuée"]
[1602422297,5,null,"LD","LIEU DIT RAVAUD","AUSSAC VADALLE",16560,16024,"RAVAUD","Création"]
[1602422297,5,null,"    ","CHEMIN DE LA TERRIERE","AUSSAC VADALLE",16560,16024,"TERRIERE","Création","Attribuée"]
["160242229A",9,null,"LD","LIEU DIT RAVAUD","AUSSAC VADALLE",16560,16024,"RAVAUD","Création"]
["160242229A",9,null,"    ","CHEMIN DE LA TERRIERE","AUSSAC VADALLE",16560,16024,"TERRIERE","Création","Attribuée"]
["160242223V",null,null,"LD","LIEU DIT RAVAUD","AUSSAC VADALLE",16560,16024,"RAVAUD","Initial"]
["160242223V",null,null,"    ","CHEMIN DE LA TERRIERE","AUSSAC VADALLE",16560,16024,"TERRIERE","Initial"]
[1602422274,1,null,"LD","LIEU DIT AUSSAC","AUSSAC VADALLE",16560,16024,"AUSSAC","Création"]
[1602422274,1,null,"    ","RUE DU CHALET","AUSSAC VADALLE",16560,16024,"CHALET","Création"]
[1602422279,2,null,"LD","LIEU DIT AUSSAC","AUSSAC VADALLE",16560,16024,"AUSSAC","Création"]
[1602422279,2,null,"    ","RUE DU CHALET","AUSSAC VADALLE",16560,16024,"CHALET","Création"]
["160242226C",3,null,"LD","LIEU DIT AUSSAC","AUSSAC VADALLE",16560,16024,"AUSSAC","Création"]
["160242226C",3,null,"    ","RUE DU CHALET","AUSSAC VADALLE",16560,16024,"CHALET","Création"]
["160242227E",4,null,"LD","LIEU DIT AUSSAC","AUSSAC VADALLE",16560,16024,"AUSSAC","Création"]
["160242227E",4,null,"    ","RUE DU CHALET","AUSSAC VADALLE",16560,16024,"CHALET","Création"]
["160242226P",5,null,"LD","LIEU DIT AUSSAC","AUSSAC VADALLE",16560,16024,"AUSSAC","Création"]
["160242226P",5,null,"    ","RUE DU CHALET","AUSSAC VADALLE",16560,16024,"CHALET","Création"]
["160242224X",10,null,"LD","LIEU DIT AUSSAC","AUSSAC VADALLE",16560,16024,"AUSSAC","Création"]
["160242224X",10,null,"    ","RUE DU CHALET","AUSSAC VADALLE",16560,16024,"CHALET","Création"]
["160242223X",null,null,"LD","LIEU DIT AUSSAC","AUSSAC VADALLE",16560,16024,"AUSSAC","Initial"]
["160242223X",null,null,"    ","RUE DU CHALET","AUSSAC VADALLE",16560,16024,"CHALET","Initial"]
["160242226U",2,null,"    ","RUE DE LA CHARMILLE","AUSSAC VADALLE",16560,16024,"CHARMILLE","Création"]
["160242224I",4,null,"    ","RUE DE LA CHARMILLE","AUSSAC VADALLE",16560,16024,"CHARMILLE","Création"]
["160242227M",6,null,"    ","RUE DE LA CHARMILLE","AUSSAC VADALLE",16560,16024,"CHARMILLE","Création"]
["160242227R",8,null,"    ","RUE DE LA CHARMILLE","AUSSAC VADALLE",16560,16024,"CHARMILLE","Création"]
["160242223Y",null,null,"    ","RUE DE LA CHARMILLE","AUSSAC VADALLE",16560,16024,"CHARMILLE","Initial"]
["160242224S",1,null,"LD","LIEU DIT AUSSAC","AUSSAC VADALLE",16560,16024,"AUSSAC","Création"]
["160242224S",1,null,"    ","RUE DE LA MARE","AUSSAC VADALLE",16560,16024,"MARE","Création"]
[1602422267,2,null,"LD","LIEU DIT AUSSAC","AUSSAC VADALLE",16560,16024,"AUSSAC","Création"]
[1602422267,2,null,"    ","RUE DE LA MARE","AUSSAC VADALLE",16560,16024,"MARE","Création"]
["160242226N",5,null,"LD","LIEU DIT AUSSAC","AUSSAC VADALLE",16560,16024,"AUSSAC","Création"]
["160242226N",5,null,"    ","RUE DE LA MARE","AUSSAC VADALLE",16560,16024,"MARE","Création"]
["16024222LU",9,null,"LD","LIEU DIT AUSSAC","AUSSAC VADALLE",16560,16024,"AUSSAC","Création"]
["16024222LU",9,null,"    ","RUE DE LA MARE","AUSSAC VADALLE",16560,16024,"MARE","Création"]
["160242223Z",null,null,"LD","LIEU DIT AUSSAC","AUSSAC VADALLE",16560,16024,"AUSSAC","Initial"]
["160242223Z",null,null,"    ","RUE DE LA MARE","AUSSAC VADALLE",16560,16024,"MARE","Initial"]
["16024222LH",3,null,"    ","RUE DU PERRON","AUSSAC VADALLE",16560,16024,"PERRON","Création"]
[1602422273,5,null,"    ","RUE DU PERRON","AUSSAC VADALLE",16560,16024,"PERRON","Création"]
[1602422242,null,null,"    ","RUE DU PERRON","AUSSAC VADALLE",16560,16024,"PERRON","Initial"]
[1602422264,1,null,"    ","RUE DE L EGLISE","AUSSAC VADALLE",16560,16024,"EGLISE","Création"]
[1602422243,null,null,"    ","RUE DE L EGLISE","AUSSAC VADALLE",16560,16024,"EGLISE","Initial"]
[1602422244,null,null,null,"RUE DES SABLIERES","AUSSAC VADALLE",16560,16024,"SABLIERES","Initial"]
[1602422246,null,null,"PL","PLACE JEAN BAPTISTE HERIARD","AUSSAC VADALLE",16560,16024,"HERIARD","Suppression"]
["16024222IU",1,null,null,"RUE DU PROFESSEUR NADIAUD","AUSSAC VADALLE",16560,16024,"NADIAUD","Création"]
["16024222IU",1,null,"LD","LIEU DIT VADALLE","AUSSAC VADALLE",16560,16024,"VADALLE","Création"]
["16024222IT",2,null,null,"RUE DU PROFESSEUR NADIAUD","AUSSAC VADALLE",16560,16024,"NADIAUD","Création"]
["16024222IT",2,null,"LD","LIEU DIT VADALLE","AUSSAC VADALLE",16560,16024,"VADALLE","Création"]
["16024222IV",3,null,null,"RUE DU PROFESSEUR NADIAUD","AUSSAC VADALLE",16560,16024,"NADIAUD","Création"]
["16024222IV",3,null,"LD","LIEU DIT VADALLE","AUSSAC VADALLE",16560,16024,"VADALLE","Création"]
["16024222LX",5,null,null,"RUE DU PROFESSEUR NADIAUD","AUSSAC VADALLE",16560,16024,"NADIAUD","Création"]
["16024222LX",5,null,"LD","LIEU DIT VADALLE","AUSSAC VADALLE",16560,16024,"VADALLE","Création"]
[1602422247,null,null,null,"RUE DU PROFESSEUR NADIAUD","AUSSAC VADALLE",16560,16024,"NADIAUD","Initial"]
[1602422247,null,null,"LD","LIEU DIT VADALLE","AUSSAC VADALLE",16560,16024,"VADALLE","Initial"]
[1602422249,null,null,null,"CHEMIN DU LAVOIR","AUSSAC VADALLE",16560,16024,"LAVOIR","Initial"]
["160242224A",null,null,null,"RAMPE DU MIDI","AUSSAC VADALLE",16560,16024,"MIDI","Initial"]
["16024222CE",3,null,"LD","LIEU DIT VADALLE","AUSSAC VADALLE",16560,16024,"VADALLE","Création"]
["16024222CE",3,null,"LD","LIEU DIT LA GRANGE","AUSSAC VADALLE",16560,16024,"GRANGE","Création"]
["16024222CE",3,null,"    ","CHEMIN DE LA GRANGE","AUSSAC VADALLE",16560,16024,"GRANGE","Création"]
["16024222CI",12,null,"LD","LIEU DIT VADALLE","AUSSAC VADALLE",16560,16024,"VADALLE","Création"]
["16024222CI",12,null,"LD","LIEU DIT LA GRANGE","AUSSAC VADALLE",16560,16024,"GRANGE","Création"]
["16024222CI",12,null,"    ","CHEMIN DE LA GRANGE","AUSSAC VADALLE",16560,16024,"GRANGE","Création"]
[16024222000,14,null,"LD","LIEU DIT VADALLE","AUSSAC VADALLE",1.56,16024,"VADALLE","Création"]
[16024222000,14,null,"LD","LIEU DIT LA GRANGE","AUSSAC VADALLE",1.56,16024,"GRANGE","Création"]
[16024222000,14,null,"    ","CHEMIN DE LA GRANGE","AUSSAC VADALLE",16560,16024,"GRANGE","Création"]
["160242224B",null,null,"LD","LIEU DIT VADALLE","AUSSAC VADALLE",16560,16024,"VADALLE","Initial"]
["160242224B",null,null,"LD","LIEU DIT LA GRANGE","AUSSAC VADALLE",16560,16024,"GRANGE","Initial"]
["160242224B",null,null,"    ","CHEMIN DE LA GRANGE","AUSSAC VADALLE",16560,16024,"GRANGE","Initial"]
["160242224C",null,null,"    ","CHEMIN EUGENE DELACROIX","AUSSAC VADALLE",16560,16024,"DELACROIX","Initial"]
["160242226A",2,null,"LD","LIEU DIT AUSSAC","AUSSAC VADALLE",16560,16024,"AUSSAC","Création"]
["160242226A",2,null,null,"RUE DE LA CROIX","AUSSAC VADALLE",16560,16024,"CROIX","Création"]
["160242226X",3,null,"LD","LIEU DIT AUSSAC","AUSSAC VADALLE",16560,16024,"AUSSAC","Création"]
["160242226X",3,null,null,"RUE DE LA CROIX","AUSSAC VADALLE",16560,16024,"CROIX","Création"]
["160242227V",4,null,"LD","LIEU DIT AUSSAC","AUSSAC VADALLE",16560,16024,"AUSSAC","Création"]
["160242227V",4,null,null,"RUE DE LA CROIX","AUSSAC VADALLE",16560,16024,"CROIX","Création"]
[1602422266,5,null,"LD","LIEU DIT AUSSAC","AUSSAC VADALLE",16560,16024,"AUSSAC","Création"]
[1602422266,5,null,null,"RUE DE LA CROIX","AUSSAC VADALLE",16560,16024,"CROIX","Création"]
["160242224M",7,null,"LD","LIEU DIT AUSSAC","AUSSAC VADALLE",16560,16024,"AUSSAC","Création"]
["160242224M",7,null,null,"RUE DE LA CROIX","AUSSAC VADALLE",16560,16024,"CROIX","Création"]
["160242224Y",9,null,"LD","LIEU DIT AUSSAC","AUSSAC VADALLE",16560,16024,"AUSSAC","Création"]
["160242224Y",9,null,null,"RUE DE LA CROIX","AUSSAC VADALLE",16560,16024,"CROIX","Création"]
["160242224Z",11,null,"LD","LIEU DIT AUSSAC","AUSSAC VADALLE",16560,16024,"AUSSAC","Création"]
["160242224Z",11,null,null,"RUE DE LA CROIX","AUSSAC VADALLE",16560,16024,"CROIX","Création"]
["160242226H",21,null,"LD","LIEU DIT AUSSAC","AUSSAC VADALLE",16560,16024,"AUSSAC","Création"]
["160242226H",21,null,null,"RUE DE LA CROIX","AUSSAC VADALLE",16560,16024,"CROIX","Création"]
["160242224G",null,null,"LD","LIEU DIT AUSSAC","AUSSAC VADALLE",16560,16024,"AUSSAC","Création"]
["160242224G",null,null,null,"RUE DE LA CROIX","AUSSAC VADALLE",16560,16024,"CROIX","Création"]
["160242224H",null,null,null,"CHEMIN DU PONT DE L AIGUILLON","AUSSAC VADALLE",16560,16024,"AIGUILLON","Création"]
["16024222BC",1,null,"LD","LIEU DIT VADALLE","AUSSAC VADALLE",16560,16024,"VADALLE","Création"]
["16024222BC",1,null,null,"CHEMIN DU CLERC","AUSSAC VADALLE",16560,16024,"CLERC","Création"]
["16024222BC",1,null,"LD","LIEU DIT PERAT","AUSSAC VADALLE",16560,16024,"PERAT","Création"]
["16024222CL",3,null,"LD","LIEU DIT VADALLE","AUSSAC VADALLE",16560,16024,"VADALLE","Création"]
["16024222CL",3,null,null,"CHEMIN DU CLERC","AUSSAC VADALLE",16560,16024,"CLERC","Création"]
["16024222CL",3,null,"LD","LIEU DIT PERAT","AUSSAC VADALLE",16560,16024,"PERAT","Création"]
["16024222EA",5,null,"LD","LIEU DIT VADALLE","AUSSAC VADALLE",16560,16024,"VADALLE","Création"]
["16024222EA",5,null,null,"CHEMIN DU CLERC","AUSSAC VADALLE",16560,16024,"CLERC","Création"]
["16024222EA",5,null,"LD","LIEU DIT PERAT","AUSSAC VADALLE",16560,16024,"PERAT","Création"]
["16024222B9",null,null,"LD","LIEU DIT VADALLE","AUSSAC VADALLE",16560,16024,"VADALLE","Création"]
["16024222B9",null,null,null,"CHEMIN DU CLERC","AUSSAC VADALLE",16560,16024,"CLERC","Création"]
["16024222B9",null,null,"LD","LIEU DIT PERAT","AUSSAC VADALLE",16560,16024,"PERAT","Création"]

{"sheet":"ENVOI_SNA","index":2,"n_rows":1,"n_cols":10,"rows_kept":1,"cut":false,"hidden":false,"merged":[]}
["Clé HEXACLE","Num Voie","Extension voie","Type voie ","Libellé voie","Localité","Code postal","Code INSEE","Dernier élément voie","Statut clé"]

{"sheet":"COLLECTIF","index":3,"n_rows":2,"n_cols":12,"rows_kept":2,"cut":false,"hidden":false,"merged":[]}
["OBJECTID *","SUBTYPEID","Clé Mediapost","Num Voie","Extension voie","Libellé voie","Ville","Nombre \nprises pro","Nombre \nprises résidentiel","Nombre \nprises total","Propriétaire","Téléphone/mail du propriétaire"]
[6172059,"Immeuble","Cette adresse est la même que celle située à la ligne 43, il faut ajouter une extension ou modifier le numéro de voie.",2,null,"CHEMIN DU MOULIN","AUSSAC VADALLE",0,6,6]

{"sheet":"LISTE EXTENSIONS","index":4,"n_rows":32,"n_cols":2,"rows_kept":32,"cut":false,"hidden":true,"merged":[]}
[]
["A"]
["B"]
["C"]
["D"]
["E"]
["F"]
["G"]
["H"]
["I"]
["J"]
["K"]
["L"]
["M"]
["N"]
["O"]
["P"]
["Q"]
["R"]
["S"]
["T"]
["U"]
["V"]
["W"]
["X"]
["Y"]
["Z"]
["BIS","B"]
["TER","T"]
["QUATER","Q"]
["QUINQUIES","C"]
[" "]